Workbook

Sheet Freeway_Import
C2: Project | D2: =Schematic!$L$3 -> Sample Freeway & Intersection Balancing
C3: Scenario | D3: =Schematic!$L$4 -> Year 2012 AM Peak | K3: LINK_ID
L4: ="$" -> $
K5: imbal | L5: 0 | M5: 0
K6: 0 | L6: 0 | M6: 0
K7: target | L7: $ | M7: $
C9: LINK_ID | D9: Corridor | E9: Corridor & Direction | F9: Type | G9: Location | H9: Balanced Volume
C10: LINK_1000 | D10: NB I-39/90 | E10: NB I-39/90 | F10: mainline | G10: Beltline I/C to Badger I/C | H10: 3610
C11: LINK_1010 | E11: NB I-39/90 | F11: off | G11: off to WB WIS 30 | H11: 570
C12: LINK_1020 | E12: NB I-39/90 | F12: off | G12: off to EB I-94 | H12: 470
C13: LINK_1030 | E13: NB I-39/90 | F13: mainline. | G13: b/n ramps | H13: 2570
C14: LINK_1040 | E14: NB I-39/90 | F14: on | G14: on from EB WIS 30 | H14: 380
C15: LINK_1050 | E15: NB I-39/90 | F15: on | G15: on from WB I-94 | H15: 700
C16: LINK_1060 | E16: NB I-39/90 | F16: mainline | G16: Badger to US 151 | H16: 3650
C17: LINK_1070 | E17: NB I-39/90 | F17: CD | G17: off to US 151/High Crossing CD | H17: 1970
C18: LINK_1080 | E18: NB I-39/90 | F18: off | G18: CD: off to High Crossing | H18: 470
C19: LINK_1090 | E19: NB I-39/90 | F19: off | G19: CD: off to NB US 151 | H19: 1380
C20: LINK_1100 | E20: NB I-39/90 | F20: CD | G20: CD: b/n ramps | H20: 120
C21: LINK_1110 | E21: NB I-39/90 | F21: on | G21: CD: on from NB US 151 | H21: 70
C22: LINK_1120 | E22: NB I-39/90 | F22: off | G22: CD: off to SB US 151 | H22: 120
C23: LINK_1130 | E23: NB I-39/90 | F23: CD | G23: CD: b/n ramps | H23: 70
C24: LINK_1140 | E24: NB I-39/90 | F24: on | G24: CD: on from SB US 151 | H24: 130
C25: LINK_1150 | E25: NB I-39/90 | F25: mainline. | G25: b/n CD exit & CD entrance | H25: 1680
C26: LINK_1160 | E26: NB I-39/90 | F26: CD | G26: on from CD | H26: 200
C27: LINK_1170 | E27: NB I-39/90 | F27: mainline | G27: US 151 to US 51 | H27: 1880
C28: LINK_1180 | E28: NB I-39/90 | F28: off | G28: off to US 51 | H28: 300
C29: LINK_1190 | E29: NB I-39/90 | F29: on | G29: on from NB US 51 | H29: 110
C30: LINK_1200 | E30: NB I-39/90 | F30: on | G30: on from SB US 51 | H30: 40
C31: LINK_1210 | E31: NB I-39/90 | F31: mainline | G31: US 51 to WIS 19 | H31: 1730
C32: LINK_2000 | D32: SB I-39/90 | E32: SB I-39/90 | F32: mainline | G32: WIS 19 to US 51 | H32: 2450
C33: LINK_2010 | E33: SB I-39/90 | F33: off | G33: off to US 51 | H33: 910
C34: LINK_2020 | E34: SB I-39/90 | F34: on | G34: on from SB US 51 | H34: 160
C35: LINK_2030 | E35: SB I-39/90 | F35: on | G35: on from NB US 51 | H35: 150
C36: LINK_2040 | E36: SB I-39/90 | F36: mainline | G36: US 51 to US 151 | H36: 1850
C37: LINK_2050 | E37: SB I-39/90 | F37: CD | G37: off to US 151 CD | H37: 400
C38: LINK_2060 | E38: SB I-39/90 | F38: off | G38: CD: off to SB US 151 | H38: 140
C39: LINK_2070 | E39: SB I-39/90 | F39: CD | G39: CD: b/n ramps | H39: 260
C40: LINK_2080 | E40: SB I-39/90 | F40: on | G40: CD: on from SB US 151 | H40: 1690
C41: LINK_2090 | E41: SB I-39/90 | F41: off | G41: CD: off to NB US 151 | H41: 260
C42: LINK_2100 | E42: SB I-39/90 | F42: CD | G42: CD: b/n ramps | H42: 1690
C43: LINK_2110 | E43: SB I-39/90 | F43: on | G43: CD: on from NB US 151 | H43: 210
C44: LINK_2120 | E44: SB I-39/90 | F44: mainline. | G44: b/n CD exit & CD entrance | H44: 1450
C45: LINK_2130 | E45: SB I-39/90 | F45: CD | G45: on from CD | H45: 1900
C46: LINK_2140 | E46: SB I-39/90 | F46: on | G46: on from High Crossing | H46: 250
C47: LINK_2150 | E47: SB I-39/90 | F47: mainline | G47: US 151 to Badger | H47: 3600
C48: LINK_2160 | E48: SB I-39/90 | F48: off | G48: off to EB I-94 | H48: 380
C49: LINK_2170 | E49: SB I-39/90 | F49: off | G49: off to WB WIS 30 | H49: 840
C50: LINK_2180 | E50: SB I-39/90 | F50: mainline. | G50: b/n ramps | H50: 2380
C51: LINK_2190 | E51: SB I-39/90 | F51: on | G51: on from WB I-94 | H51: 910
C52: LINK_2200 | E52: SB I-39/90 | F52: on | G52: on from EB WIS 30 | H52: 240
C53: LINK_2210 | E53: SB I-39/90 | F53: mainline | G53: Badger I/C to Beltline I/C | H53: 3530
C54: LINK_3000 | D54: NB US 151 | E54: NB US 151 | F54: mainline | G54: Frontage Rd to I-39/90/94 | H54: 820
C55: LINK_2110 | E55: NB US 151 | F55: off | G55: off to SB I-39/90/94 | H55: 210
C56: LINK_2090 | E56: NB US 151 | F56: on | G56: on from SB I-39/90/94 | H56: 260
C57: LINK_1110 | E57: NB US 151 | F57: off | G57: off to NB I-39/90/94 | H57: 70
C58: LINK_1090 | E58: NB US 151 | F58: on | G58: on from NB I-39/90/94 | H58: 1380
C59: LINK_3050 | E59: NB US 151 | F59: mainline | G59: I-39/90/94 to American Pkwy | H59: 2180
C60: LINK_3060 | E60: NB US 151 | F60: off | G60: off to EB American Pkwy | H60: 130
C61: LINK_3070 | E61: NB US 151 | F61: off | G61: off to WB American Pkwy | H61: 910
C62: LINK_3080 | E62: NB US 151 | F62: mainline. | G62: b/n ramps | H62: 1140
C63: LINK_3090 | E63: NB US 151 | F63: on | G63: NB on from American Pkwy | H63: 150
C64: LINK_3100 | E64: NB US 151 | F64: mainline | G64: American Pkwy to Reiner Rd | H64: 1290
C65: LINK_4000 | D65: SB US 151 | E65: SB US 151 | F65: mainline | G65: Reiner Rd to American Pkwy | H65: 3550
C66: LINK_4010 | E66: SB US 151 | F66: CD | G66: off to American Pkwy/High Crossing | H66: 510
C67: LINK_4020 | E67: SB US 151 | F67: off | G67: off to WB American Pkwy | H67: 320
C68: LINK_4030 | E68: SB US 151 | F68: off | G68: off to High Crossing | H68: 190
C69: LINK_4040 | E69: SB US 151 | F69: on | G69: on from High Crossing | H69: 70
C70: LINK_4050 | E70: SB US 151 | F70: mainline. | G70: b/n ramps | H70: 3110
C71: LINK_4060 | E71: SB US 151 | F71: on | G71: on from EB American Pkwy | H71: 290
C72: LINK_4070 | E72: SB US 151 | F72: mainline | G72: American Pkwy to I-39/90/94 | H72: 3400
C73: LINK_1140 | E73: SB US 151 | F73: off | G73: off to NB I-39/90/94 | H73: 130
C74: LINK_1120 | E74: SB US 151 | F74: on | G74: on from NB I-39/90/94 | H74: 120
C75: LINK_2080 | E75: SB US 151 | F75: off | G75: off to SB I-39/90/94 | H75: 1690
C76: LINK_2060 | E76: SB US 151 | F76: on | G76: on from SB I-39/90/94 | H76: 140
C77: LINK_4120 | E77: SB US 151 | F77: mainline | G77: I-39/90/94 to Frontage Rd | H77: 1840
C78: LINK_5000 | D78: EB WIS 30 | E78: EB WIS 30 | F78: mainline | G78: Fair Oaks to US 51 | H78: 1380
C79: LINK_5010 | E79: EB WIS 30 | F79: off | G79: off to US 51 | H79: 650
C80: LINK_5020 | E80: EB WIS 30 | F80: on | G80: on from US 51 | H80: 500
C81: LINK_5030 | E81: EB WIS 30 | F81: mainline | G81: US 51 to Thompson Dr | H81: 1230
C82: LINK_5040 | E82: EB WIS 30 | F82: off | G82: off to Thompson Dr | H82: 270
C83: LINK_5050 | E83: EB WIS 30 | F83: mainline | G83: Thompson Dr to I-39/90 | H83: 960
C84: LINK_2200 | E84: EB WIS 30 | F84: off | G84: off to SB I-39/90 | H84: 240
C85: LINK_1040 | E85: EB WIS 30 | F85: off | G85: off to NB I-39/90 | H85: 380
C86: LINK_5080 | E86: EB WIS 30 | F86: mainline | G86: EB WIS 30 to EB I-94 | H86: 340
C87: LINK_1020 | E87: EB WIS 30 | F87: on | G87: on from NB I-39/90 | H87: 470
C88: LINK_2160 | E88: EB WIS 30 | F88: on | G88: on from SB I-39/90/94 | H88: 380
C89: LINK_5110 | D89: EB I-94 | E89: EB I-94 | F89: mainline | G89: Badger to County N | H89: 1010
C90: LINK_6000 | D90: WB I-94 | E90: WB I-94 | F90: mainline | G90: County N to Badger | H90: 2550
C91: LINK_1050 | E91: WB I-94 | F91: off | G91: off to NB I-39/90 | H91: 700
C92: LINK_2190 | E92: WB I-94 | F92: off | G92: off to SB I-39/90 | H92: 910
C93: LINK_6030 | D93: WB WIS 30 | E93: WB WIS 30 | F93: mainline | G93: EB I-94 to EB WIS 30 | H93: 0
C94: LINK_2170 | E94: WB WIS 30 | F94: on | G94: on from SB I-39/90/94 | H94: 840
C95: LINK_1010 | E95: WB WIS 30 | F95: on | G95: on from NB I-39/90 | H95: 570
C96: LINK_6060 | E96: WB WIS 30 | F96: mainline | G96: Badger to Thompson Dr | H96: 2350
C97: LINK_6070 | E97: WB WIS 30 | F97: on | G97: on from Thompson Dr | H97: 1110
C98: LINK_6080 | E98: WB WIS 30 | F98: mainline | G98: Thompson Dr to US 51 | H98: 3460
C99: LINK_6090 | E99: WB WIS 30 | F99: off | G99: off to US 51 | H99: 1320
C100: LINK_6100 | E100: WB WIS 30 | F100: on | G100: on from US 51 | H100: 550
C101: LINK_6110 | E101: WB WIS 30 | F101: mainline | G101: US 51 to Fair Oaks | H101: 2690

Sheet Schematic
K3: Project | L3: Sample Freeway & Intersection Balancing
K4: Scenario | L4: Year 2012 AM Peak
J10: Do not put intersection data on the left side or above the black border
F11: Total network imbalance | G11: =ABS(AY27)+ABS(AF42)+ABS(BO42)+ABS(BN46)+ABS(AU61)+ABS(AY62)+ABS(AF77)+ABS(AE81)+ABS(BN81)+ABS(AU96)+ABS(DK113)+ABS(CR128)+ABS(DZ132)+ABS(DG147)+ABS(DK148)+ABS(AF163)+ABS(BB163)+ABS(BA167)+ABS(BW167)+ABS(BN177)+ABS(AO178)+ABS(DG182)+ABS(DK183)+ABS(CR198)+ABS(EA198)+ABS(DZ202)+ABS(DG217)+ABS(BH245)+ABS(DI245)+ABS(CP260)+ABS(AU263)+ABS(BR263)+ABS(DX264)+ABS(BD279)+ABS(DE279)+ABS(BH280)+ABS(DI280)+ABS(BP297)+ABS(AU299)+ABS(CV299)+ABS(BD314)+ABS(DE314) -> 1018
C14: Balancing Convergence Criteria
F15: Maximum Iterations | G15: 500
F16: Max. Tot. Network Imbalance | G16: 0.01
AT27: =IF(AU24<>"",AVERAGE(AU27,AU24),AU27) -> 1205 | AU27: =SUM(AU39:AV39) -> 1205 | AV27: =SUM(AU42:AV42) -> 1205 | AX27: =IF(AX26<>"",AX26-AX29,0) -> 0 | AY27: =IF(AY26<>"",AY26-AY29,0) -> 0 | AZ27: imbal
AT28: target | AU28: $ | AV28: $ | AX28: # | AY28: # | AZ28: target
AX29: =SUM(AX46,AY42) -> 529 | AY29: =SUM(AX49,BB42) -> 529 | AZ29: =IF(AY26<>"",AVERAGE(AY29,AY26),AY29) -> 529
AI30: =CHOOSE(1,AW44&":","IX_NAME",AJ30) -> 1: | AJ30: US 51 & NB I-39/90/94 Ramps | BF30: Local OD Raw
AJ31: Raw Count Date: | AK31: 2013-06-06 | BF31: ="local_od_raw_"&AW44 -> local_od_raw_1 | BG31: 1 | BH31: 2 | BI31: 3 | BJ31: 4 | BK31: est | BL31: tgt | BM31: err
BF32: 1 | BG32: 0 | BH32: =AY46 -> 143 | BI32: =AX46 -> 312 | BJ32: 0 | BK32: =SUM(BG32:BJ32) -> 455 | BL32: =AZ61 -> 440.5 | BM32: =IFERROR(ABS(BK32-BL32)/BL32,0) -> 0.03291713961
AV33: US 51 | BF33: 2 | BG33: =AY43 -> 91 | BH33: 0 | BI33: =AY42 -> 217 | BJ33: 0 | BK33: =SUM(BG33:BJ33) -> 308 | BL33: =BN41 -> 304 | BM33: =IFERROR(ABS(BK33-BL33)/BL33,0) -> 0.01315789474
BF34: 3 | BG34: =AV42 -> 1193 | BH34: 0 | BI34: 0 | BJ34: =AU42 -> 12 | BK34: =SUM(BG34:BJ34) -> 1205 | BL34: =AT27 -> 1205 | BM34: 0
BF35: 4 | BG35: 0 | BH35: 0 | BI35: 0 | BJ35: 0 | BK35: =SUM(BG35:BJ35) -> 0 | BL35: 0 | BM35: 0
BF36: est | BG36: =SUM(BG32:BG35) -> 1284 | BH36: =SUM(BH32:BH35) -> 143 | BI36: =SUM(BI32:BI35) -> 529 | BJ36: =SUM(BJ32:BJ35) -> 12
AT37: RNSE | AU37: =RNSE(AU39,AU42) -> 0 | AV37: =RNSE(AV39,AV42) -> 0 | BF37: tgt | BG37: =AT59 -> 1308.5 | BH37: =BL47 -> 126.5 | BI37: =AZ29 -> 529 | BJ37: =AH41 -> 26
AT38: % | AU38: =AU39/AU27 -> 0.009958506224 | AV38: =AV39/AU27 -> 0.9900414938 | BF38: err | BG38: =IFERROR(ABS(BG36-BG37)/BG37,0) -> 0.01872372946 | BH38: =IFERROR(ABS(BH36-BH37)/BH37,0) -> 0.1304347826 | BI38: 0 | BJ38: 0.5384615385 | BM38: =SUM(BG38:BJ38,BM32:BM35) -> 0.7336950849
AT39: bal | AU39: =BJ53 -> 12 | AV39: =BG53 -> 1193
AD40: To NB I-39/90/94 | AU40: 8 | AV40: $ | BQ40: From NB I-39/90/94
AD41: LINK_1200 | AF41: imbal | AG41: target | AH41: =IF(AE42<>"",AVERAGE(AH42,AE42),AH42) -> 26 | AT41: % | AU41: =AU42/AV27 -> 0.009958506224 | AV41: =AV42/AV27 -> 0.9900414938 | AY41: raw | AZ41: % | BB41: bal | BC41: % | BD41: RNSE | BM41: target | BN41: =IF(BQ42<>"",AVERAGE(BN42,BQ42),BN42) -> 304 | BO41: imbal | BQ41: LINK_1180
AD42: =CHOOSE(1,"!","LINK",AD41,AE42) -> ! | AE42: =INDEX(Freeway_Import!$H$10:$H$101, MATCH(AD41,Freeway_Import!$C$10:$C$101,0)) -> 40 | AF42: =IF(AE42<>"",AE42-AH42,0) -> 28 | AG42: ! | AH42: =AU39 -> 12 | AT42: raw | AU42: 12 | AV42: 1193 | AX42: =CHOOSE(1,"<","TURN",8,AW44,AY42,BB42) -> < | AY42: 217 | AZ42: =AY42/BN43 -> 0.7045454545 | BA42: < | BB42: =BI52 -> 217 | BC42: =BB42/BN42 -> 0.7045454545 | BD42: =RNSE(BB42,AY42) -> 0 | BM42: ! | BN42: =SUM(BB42:BB43) -> 308 | BO42: =IF(BQ42<>"",BN42-BQ42,0) -> 8 | BP42: =CHOOSE(1,"!","LINK",BQ41,BQ42) -> ! | BQ42: =INDEX(Freeway_Import!$H$10:$H$101, MATCH(BQ41,Freeway_Import!$C$10:$C$101,0)) -> 300
AF43: =IF(AE43<>"",AE43-AH43,0) -> 0 | AG43: ! | AH43: =AU42 -> 12 | AU43: =CHOOSE(1,8,"TURN",12,AW44,AU42,AU39) -> 8 | AV43: =CHOOSE(1,"$","TURN",11,AW44,AV42,AV39) -> $ | AX43: =CHOOSE(1,">","TURN",6,AW44,AY43,BB43) -> > | AY43: 91 | AZ43: =AY43/BN43 -> 0.2954545455 | BA43: > | BB43: =BG52 -> 91 | BC43: =BB43/BN42 -> 0.2954545455 | BD43: =RNSE(BB43,AY43) -> 0 | BM43: ! | BN43: =SUM(AY42:AY43) -> 308 | BO43: =IF(BQ42<>"",BN43-BQ42,0) -> 8
AW44: 1
AN45: NB I-39/90/94 | AX45: =CHOOSE(1,"#","TURN",3,AW44,AX46,AX49) -> # | AY45: =CHOOSE(1,";","TURN",4,AW44,AY46,AY49) -> ; | BL45: =AY46 -> 143 | BM45: " | BN45: =IF(BO45<>"",BO45-BL45,0) -> 0
AX46: 312 | AY46: 143 | AZ46: raw | BL46: =AY49 -> 143 | BM46: " | BN46: =IF(BO46<>"",BO46-BL46,0) -> -33 | BO46: =INDEX(Freeway_Import!$H$10:$H$101, MATCH(BP47,Freeway_Import!$C$10:$C$101,0)) -> 110 | BP46: =CHOOSE(1,"""","LINK",BP47,BO46) -> "
AX47: =AX46/AX61 -> 0.6857142857 | AY47: =AY46/AX61 -> 0.3142857143 | AZ47: % | BL47: =IF(BO46<>"",AVERAGE(BL46,BO46),BL46) -> 126.5 | BM47: target | BN47: imbal | BP47: LINK_1190
AX48: # | AY48: ; | BP48: To NB I-39/90/94
AX49: =BI51 -> 312 | AY49: =BH51 -> 143 | AZ49: bal | BF49: Local OD Estimated
AX50: =AX49/AY61 -> 0.6857142857 | AY50: =AY49/AY61 -> 0.3142857143 | AZ50: % | BF50: ="local_od_est_"&AW44 -> local_od_est_1 | BG50: 1 | BH50: 2 | BI50: 3 | BJ50: 4 | BK50: est | BL50: tgt | BM50: err
AX51: =RNSE(AX49,AX46) -> 0 | AY51: 0 | AZ51: RNSE | BF51: 1 | BG51: =BG32 -> 0 | BH51: 143 | BI51: 312 | BJ51: 0 | BK51: =SUM(BG51:BJ51) -> 455 | BL51: =BL32 -> 440.5 | BM51: =IFERROR(ABS(BK51-BL51)/BL51,0) -> 0.03291713961
BF52: 2 | BG52: 91 | BH52: 0 | BI52: 217 | BJ52: 0 | BK52: =SUM(BG52:BJ52) -> 308 | BL52: 304 | BM52: =IFERROR(ABS(BK52-BL52)/BL52,0) -> 0.01315789474
BF53: 3 | BG53: 1193 | BH53: 0 | BI53: 0 | BJ53: 12 | BK53: 1205 | BL53: 1205 | BM53: 0
BF54: 4 | BG54: 0 | BH54: 0 | BI54: 0 | BJ54: 0 | BK54: 0 | BL54: 0 | BM54: 0
BF55: est | BG55: =SUM(BG51:BG54) -> 1284 | BH55: =SUM(BH51:BH54) -> 143 | BI55: 529 | BJ55: 12
BF56: tgt | BG56: =BG37 -> 1308.5 | BH56: 126.5 | BI56: 529 | BJ56: 26
BF57: err | BG57: =IFERROR(ABS(BG55-BG56)/BG56,0) -> 0.01872372946 | BH57: =IFERROR(ABS(BH55-BH56)/BH56,0) -> 0.1304347826 | BI57: 0 | BJ57: 0.5384615385 | BM57: =SUM(BG57:BJ57,BM51:BM54) -> 0.7336950849
AT59: =IF(AU62<>"",AVERAGE(AU59,AU62),AU59) -> 1308.5 | AU59: =SUM(BB43,AV39) -> 1284 | AV59: =SUM(AY43,AV42) -> 1284
AT60: target | AU60: $ | AV60: $ | AX60: # | AY60: # | AZ60: target
AT61: imbal | AU61: =IF(AU62<>"",AU62-AU59,0) -> 49 | AV61: =IF(AV62<>"",AV62-AV59,0) -> 49 | AX61: =SUM(AX46:AY46) -> 455 | AY61: =SUM(AX49:AY49) -> 455 | AZ61: =IF(AY64<>"",AVERAGE(AY61,AY64),AY61) -> 440.5
AT62: =IF(AU59<>"",AVERAGE(AU62,AU59),AU62) -> 1308.5 | AU62: =SUM(AU74:AV74) -> 1333 | AV62: =SUM(AU77:AV77) -> 1333 | AX62: =IF(AX61<>"",AX61-AX64,0) -> 29 | AY62: =IF(AY61<>"",AY61-AY64,0) -> 29 | AZ62: imbal
AT63: target | AU63: $ | AV63: $ | AX63: # | AY63: # | AZ63: target
AX64: =SUM(AU80,AX81) -> 426 | AY64: =SUM(AR80,AX84) -> 426 | AZ64: =IF(AY61<>"",AVERAGE(AY64,AY61),AY64) -> 440.5
AI65: =CHOOSE(1,AW79&":","IX_NAME",AJ65) -> 2: | AJ65: US 51 & SB I-39/90/94 Ramps | BF65: Local OD Raw
AJ66: Raw Count Date: | AK66: 2013-06-06 | BF66: ="local_od_raw_"&AW79 -> local_od_raw_2 | BG66: 1 | BH66: 2 | BI66: 3 | BJ66: 4 | BK66: est | BL66: tgt | BM66: err
BF67: 1 | BG67: 0 | BH67: =AY81 -> 76 | BI67: =AX81 -> 423 | BJ67: 0 | BK67: =SUM(BG67:BJ67) -> 499 | BL67: =AZ96 -> 499 | BM67: =IFERROR(ABS(BK67-BL67)/BL67,0) -> 0
AV68: US 51 | BF68: 2 | BG68: 0 | BH68: 0 | BI68: 0 | BJ68: 0 | BK68: =SUM(BG68:BJ68) -> 0 | BL68: 0 | BM68: =IFERROR(ABS(BK68-BL68)/BL68,0) -> 0
BF69: 3 | BG69: =AV77 -> 1064 | BH69: 0 | BI69: 0 | BJ69: =AU77 -> 269 | BK69: =SUM(BG69:BJ69) -> 1333 | BL69: =AT62 -> 1308.5 | BM69: 0.01872372946
BF70: 4 | BG70: =AU81 -> 786 | BH70: 0 | BI70: =AU80 -> 3 | BJ70: 0 | BK70: =SUM(BG70:BJ70) -> 789 | BL70: =AF82 -> 849.5 | BM70: 0.07121836374
BF71: est | BG71: =SUM(BG67:BG70) -> 1850 | BH71: =SUM(BH67:BH70) -> 76 | BI71: =SUM(BI67:BI70) -> 426 | BJ71: =SUM(BJ67:BJ70) -> 269
AT72: RNSE | AU72: =RNSE(AU74,AU77) -> 0 | AV72: =RNSE(AV74,AV77) -> 0 | BF72: tgt | BG72: =AT94 -> 1850 | BH72: =BL82 -> 113 | BI72: =AZ64 -> 440.5 | BJ72: =AH76 -> 214.5
AT73: % | AU73: =AU74/AU62 -> 0.2018004501 | AV73: =AV74/AU62 -> 0.7981995499 | BF73: err | BG73: =IFERROR(ABS(BG71-BG72)/BG72,0) -> 0 | BH73: =IFERROR(ABS(BH71-BH72)/BH72,0) -> 0.3274336283 | BI73: 0.03291713961 | BJ73: 0.2540792541 | BM73: =SUM(BG73:BJ73,BM67:BM70) -> 0.7043721152
AT74: bal | AU74: =BJ88 -> 269 | AV74: =BG88 -> 1064
AD75: To SB I-39/90/94 | AU75: 8 | AV75: $
AD76: LINK_2020 | AF76: imbal | AG76: target | AH76: =IF(AE77<>"",AVERAGE(AH77,AE77),AH77) -> 214.5 | AT76: % | AU76: =AU77/AV62 -> 0.2018004501 | AV76: =AV77/AV62 -> 0.7981995499
AD77: =CHOOSE(1,"!","LINK",AD76,AE77) -> ! | AE77: =INDEX(Freeway_Import!$H$10:$H$101, MATCH(AD76,Freeway_Import!$C$10:$C$101,0)) -> 160 | AF77: =IF(AE77<>"",AE77-AH77,0) -> -109 | AG77: ! | AH77: =AU74 -> 269 | AT77: raw | AU77: 269 | AV77: 1064
AF78: =IF(AE78<>"",AE78-AH78,0) -> 0 | AG78: ! | AH78: =AU77 -> 269 | AU78: =CHOOSE(1,8,"TURN",12,AW79,AU77,AU74) -> 8 | AV78: =CHOOSE(1,"$","TURN",11,AW79,AV77,AV74) -> $
AW79: 2
AE80: =IF(AF80<>"",AF80-AC80,0) -> 789 | AF80: =SUM(AU80:AU81) -> 789 | AG80: " | AN80: SB I-39/90/94 | AP80: =RNSE(AR80,AU80) -> 0 | AQ80: =AR80/AF81 -> 0.003802281369 | AR80: =BI89 -> 3 | AS80: = | AT80: =AU80/AF80 -> 0.003802281369 | AU80: 3 | AV80: =CHOOSE(1,"=","TURN",14,AW79,AU80,AR80) -> = | AX80: =CHOOSE(1,"#","TURN",3,AW79,AX81,AX84) -> # | AY80: =CHOOSE(1,";","TURN",4,AW79,AY81,AY84) -> ; | BL80: =AY81 -> 76 | BM80: " | BN80: =IF(BO80<>"",BO80-BL80,0) -> 0
AC81: =INDEX(Freeway_Import!$H$10:$H$101, MATCH(AC82,Freeway_Import!$C$10:$C$101,0)) -> 910 | AD81: =CHOOSE(1,"""","LINK",AC82,AC81) -> " | AE81: =IF(AF81<>"",AF81-AC81,0) -> -121 | AF81: =SUM(AR80:AR81) -> 789 | AG81: " | AP81: =RNSE(AR81,AU81) -> 0 | AQ81: =AR81/AF81 -> 0.9961977186 | AR81: =BG89 -> 786 | AS81: ? | AT81: =AU81/AF80 -> 0.9961977186 | AU81: 786 | AV81: =CHOOSE(1,"?","TURN",16,AW79,AU81,AR81) -> ? | AX81: 423 | AY81: 76 | AZ81: raw | BL81: =AY84 -> 76 | BM81: " | BN81: =IF(BO81<>"",BO81-BL81,0) -> 74 | BO81: =INDEX(Freeway_Import!$H$10:$H$101, MATCH(BP82,Freeway_Import!$C$10:$C$101,0)) -> 150 | BP81: =CHOOSE(1,"""","LINK",BP82,BO81) -> "
AC82: LINK_2010 | AE82: imbal | AF82: =IF(AC81<>"",AVERAGE(AF81,AC81),AF81) -> 849.5 | AG82: target | AP82: RNSE | AQ82: % | AR82: bal | AT82: % | AU82: raw | AX82: =AX81/AX96 -> 0.8476953908 | AY82: =AY81/AX96 -> 0.1523046092 | AZ82: % | BL82: =IF(BO81<>"",AVERAGE(BL81,BO81),BL81) -> 113 | BM82: target | BN82: imbal | BP82: LINK_2030
AC83: From SB I-39/90/94 | AX83: # | AY83: ; | BP83: To SB I-39/90/94
AX84: =BI86 -> 423 | AY84: =BH86 -> 76 | AZ84: bal | BF84: Local OD Estimated
AX85: =AX84/AY96 -> 0.8476953908 | AY85: =AY84/AY96 -> 0.1523046092 | AZ85: % | BF85: ="local_od_est_"&AW79 -> local_od_est_2 | BG85: 1 | BH85: 2 | BI85: 3 | BJ85: 4 | BK85: est | BL85: tgt | BM85: err
AX86: =RNSE(AX84,AX81) -> 0 | AY86: 0 | AZ86: RNSE | BF86: 1 | BG86: =BG67 -> 0 | BH86: 76 | BI86: 423 | BJ86: 0 | BK86: =SUM(BG86:BJ86) -> 499 | BL86: =BL67 -> 499 | BM86: =IFERROR(ABS(BK86-BL86)/BL86,0) -> 0
BF87: 2 | BG87: 0 | BH87: 0 | BI87: 0 | BJ87: 0 | BK87: =SUM(BG87:BJ87) -> 0 | BL87: 0 | BM87: =IFERROR(ABS(BK87-BL87)/BL87,0) -> 0
BF88: 3 | BG88: 1064 | BH88: 0 | BI88: 0 | BJ88: 269 | BK88: 1333 | BL88: 1308.5 | BM88: 0.01872372946
BF89: 4 | BG89: 786 | BH89: 0 | BI89: 3 | BJ89: 0 | BK89: 789 | BL89: 849.5 | BM89: 0.07121836374
BF90: est | BG90: =SUM(BG86:BG89) -> 1850 | BH90: =SUM(BH86:BH89) -> 76 | BI90: 426 | BJ90: 269
BF91: tgt | BG91: =BG72 -> 1850 | BH91: 113 | BI91: 440.5 | BJ91: 214.5
BF92: err | BG92: =IFERROR(ABS(BG90-BG91)/BG91,0) -> 0 | BH92: =IFERROR(ABS(BH90-BH91)/BH91,0) -> 0.3274336283 | BI92: 0.03291713961 | BJ92: 0.2540792541 | BM92: =SUM(BG92:BJ92,BM86:BM89) -> 0.7043721152
AT94: =IF(AU97<>"",AVERAGE(AU94,AU97),AU94) -> 1850 | AU94: =SUM(AV74,AR81) -> 1850 | AV94: =SUM(AV77,AU81) -> 1850
AT95: target | AU95: $ | AV95: $ | AX95: # | AY95: # | AZ95: target
AT96: imbal | AU96: =IF(AU97<>"",AU97-AU94,0) -> 0 | AV96: =IF(AV97<>"",AV97-AV94,0) -> 0 | AX96: =SUM(AX81:AY81) -> 499 | AY96: =SUM(AX84:AY84) -> 499 | AZ96: =IF(AY99<>"",AVERAGE(AY96,AY99),AY96) -> 499
DF113: =IF(DG110<>"",AVERAGE(DG113,DG110),DG113) -> 408 | DG113: =SUM(DE125:DH125) -> 408 | DH113: =SUM(DE128:DH128) -> 408 | DJ113: =IF(DJ112<>"",DJ112-DJ115,0) -> 0 | DK113: =IF(DK112<>"",DK112-DK115,0) -> 0 | DL113: imbal
DF114: target | DG114: $ | DH114: $ | DJ114: # | DK114: # | DL114: target
DJ115: =SUM(DH128,DG132,DL132,DK126) -> 1090 | DK115: =SUM(DH125,DD132,DL135,DN126) -> 1090 | DL115: =IF(DK112<>"",AVERAGE(DK115,DK112),DK115) -> 1090
CU116: =CHOOSE(1,DI130&":","IX_NAME",CV116) -> 5: | CV116: American Pkwy & Eastpark Blvd | DR116: Local OD Raw
CV117: Raw Count Date: | CW117: 2012-05-05 | DR117: ="local_od_raw_"&DI130 -> local_od_raw_5 | DS117: 1 | DT117: 2 | DU117: 3 | DV117: 4 | DW117: est | DX117: tgt | DY117: err
DR118: 1 | DS118: =DJ132 -> 0 | DT118: =DM132 -> 110 | DU118: =DL132 -> 1051 | DV118: =DK132 -> 570 | DW118: =SUM(DS118:DV118) -> 1731 | DX118: =DL147 -> 1716 | DY118: =IFERROR(ABS(DW118-DX118)/DX118,0) -> 0.008741258741
DH119: American Pkwy | DR119: 2 | DS119: =DK128 -> 87 | DT119: =DK129 -> 0 | DU119: =DK126 -> 15 | DV119: =DK127 -> 33 | DW119: =SUM(DS119:DV119) -> 135 | DX119: =DZ127 -> 135 | DY119: =IFERROR(ABS(DW119-DX119)/DX119,0) -> 0
DR120: 3 | DS120: =DF128 -> 343 | DT120: =DG128 -> 14 | DU120: =DH128 -> 0 | DV120: =DE128 -> 51 | DW120: =SUM(DS120:DV120) -> 408 | DX120: =DF113 -> 408 | DY120: 0
DR121: 4 | DS121: =DG134 -> 120 | DT121: =DG133 -> 13 | DU121: =DG132 -> 24 | DV121: =DG131 -> 0 | DW121: =SUM(DS121:DV121) -> 157 | DX121: =CR133 -> 157 | DY121: 0
DR122: est | DS122: =SUM(DS118:DS121) -> 550 | DT122: =SUM(DT118:DT121) -> 137 | DU122: =SUM(DU118:DU121) -> 1090 | DV122: =SUM(DV118:DV121) -> 654
DD123: RNSE | DE123: =RNSE(DE125,DE128) -> 0 | DF123: =RNSE(DF125,DF128) -> 0 | DG123: 0 | DH123: - | DR123: tgt | DS123: =DF145 -> 532 | DT123: =DX133 -> 137 | DU123: =DL115 -> 1090 | DV123: =CT127 -> 654
DD124: % | DE124: =DE125/DG113 -> 0.125 | DF124: =DF125/DG113 -> 0.8406862745 | DG124: =DG125/DG113 -> 0.03431372549 | DH124: =DH125/DG113 -> 0 | DR124: err | DS124: =IFERROR(ABS(DS122-DS123)/DS123,0) -> 0.03383458647 | DT124: =IFERROR(ABS(DT122-DT123)/DT123,0) -> 0 | DU124: 0 | DV124: 0 | DY124: =SUM(DS124:DV124,DY118:DY121) -> 0.04257584521
DD125: bal | DE125: =DV139 -> 51 | DF125: =DS139 -> 343 | DG125: =DT139 -> 14 | DH125: =DU139 -> 0 | DK125: raw | DL125: % | DN125: bal | DO125: % | DP125: RNSE
DE126: 8 | DF126: $ | DG126: 9 | DH126: M | DJ126: =CHOOSE(1,"<","TURN",8,DI130,DK126,DN126) -> < | DK126: 15 | DL126: =DK126/DZ129 -> 0.1111111111 | DM126: < | DN126: =DU138 -> 15 | DO126: =DN126/DZ128 -> 0.1111111111 | DP126: =RNSE(DN126,DK126) -> 0
CR127: imbal | CS127: target | CT127: =IF(CQ128<>"",AVERAGE(CT128,CQ128),CT128) -> 654 | DD127: % | DE127: =DE128/DH113 -> 0.125 | DF127: =DF128/DH113 -> 0.8406862745 | DG127: =DG128/DH113 -> 0.03431372549 | DH127: =DH128/DH113 -> 0 | DJ127: =CHOOSE(1,"!","TURN",7,DI130,DK127,DN127) -> ! | DK127: 33 | DL127: =DK127/DZ129 -> 0.2444444444 | DM127: ! | DN127: =DV138 -> 33 | DO127: =DN127/DZ128 -> 0.2444444444 | DP127: =RNSE(DN127,DK127) -> 0 | DY127: target | DZ127: =IF(EC128<>"",AVERAGE(DZ128,EC128),DZ128) -> 135
CR128: =IF(CQ128<>"",CQ128-CT128,0) -> 0 | CS128: ! | CT128: =SUM(DD131,DK135,DN127,DE125) -> 654 | DD128: raw | DE128: 51 | DF128: 343 | DG128: 14 | DH128: 0 | DJ128: =CHOOSE(1,">","TURN",6,DI130,DK128,DN128) -> > | DK128: 87 | DL128: =DK128/DZ129 -> 0.6444444444 | DM128: > | DN128: =DS138 -> 87 | DO128: =DN128/DZ128 -> 0.6444444444 | DP128: 0 | DY128: ! | DZ128: =SUM(DN126:DN129) -> 135
CR129: =IF(CQ129<>"",CQ129-CT129,0) -> 0 | CS129: ! | CT129: =SUM(DG131,DK132,DK127,DE128) -> 654 | DE129: =CHOOSE(1,8,"TURN",12,DI130,DE128,DE125) -> 8 | DF129: =CHOOSE(1,"$","TURN",11,DI130,DF128,DF125) -> $ | DG129: =CHOOSE(1,"9","TURN",10,DI130,DG128,DG125) -> 9 | DH129: =CHOOSE(1,"M","TURN",9,DI130,DH128,DH125) -> M | DJ129: =CHOOSE(1,"N","TURN",5,DI130,DK129,DN129) -> N | DK129: 0 | DL129: =DK129/DZ129 -> 0 | DM129: N | DN129: =DT138 -> 0 | DO129: =DN129/DZ128 -> 0 | DP129: - | DY129: ! | DZ129: =SUM(DK126:DK129) -> 135
DI130: 5
AZ131: I-39/90/94 | CR131: =SUM(DG131:DG134) -> 157 | CS131: " | CZ131: Eastpark Blvd | DB131: =RNSE(DD131,DG131) -> - | DC131: =DD131/CR132 -> 0 | DD131: =DV140 -> 0 | DE131: O | DF131: =DG131/CR131 -> 0 | DG131: 0 | DH131: =CHOOSE(1,"O","TURN",13,DI130,DG131,DD131) -> O | DJ131: =CHOOSE(1,"L","TURN",1,DI130,DJ132,DJ135) -> L | DK131: =CHOOSE(1,":","TURN",2,DI130,DK132,DK135) -> : | DL131: =CHOOSE(1,"#","TURN",3,DI130,DL132,DL135) -> # | DM131: =CHOOSE(1,";","TURN",4,DI130,DM132,DM135) -> ; | DX131: =SUM(DK129,DG128,DG133,DM132) -> 137 | DY131: " | DZ131: =IF(EA131<>"",EA131-DX131,0) -> 0
CR132: =SUM(DD131:DD134) -> 157 | CS132: " | DB132: 0 | DC132: =DD132/CR132 -> 0.152866242 | DD132: =DU140 -> 24 | DE132: = | DF132: =DG132/CR131 -> 0.152866242 | DG132: 24 | DH132: =CHOOSE(1,"=","TURN",14,DI130,DG132,DD132) -> = | DJ132: 0 | DK132: 570 | DL132: 1051 | DM132: 110 | DN132: raw | DX132: =SUM(DN129,DG125,DD133,DM135) -> 137 | DY132: " | DZ132: =IF(EA132<>"",EA132-DX132,0) -> 0
CR133: =IF(CO132<>"",AVERAGE(CR132,CO132),CR132) -> 157 | CS133: target | DB133: 0 | DC133: =DD133/CR132 -> 0.08280254777 | DD133: =DT140 -> 13 | DE133: " | DF133: =DG133/CR131 -> 0.08280254777 | DG133: 13 | DH133: =CHOOSE(1,"""","TURN",15,DI130,DG133,DD133) -> " | DJ133: =DJ132/DJ147 -> 0 | DK133: =DK132/DJ147 -> 0.3292894281 | DL133: =DL132/DJ147 -> 0.6071634893 | DM133: =DM132/DJ147 -> 0.06354708261 | DN133: % | DX133: =IF(EA132<>"",AVERAGE(DX132,EA132),DX132) -> 137 | DY133: target | DZ133: imbal
DB134: 0 | DC134: =DD134/CR132 -> 0.7643312102 | DD134: =DS140 -> 120 | DE134: ? | DF134: =DG134/CR131 -> 0.7643312102 | DG134: 120 | DH134: =CHOOSE(1,"?","TURN",16,DI130,DG134,DD134) -> ? | DJ134: L | DK134: : | DL134: # | DM134: ;
DB135: RNSE | DC135: % | DD135: bal | DF135: % | DG135: raw | DJ135: =DS137 -> 0 | DK135: =DV137 -> 570 | DL135: =DU137 -> 1051 | DM135: =DT137 -> 110 | DN135: bal | DR135: Local OD Estimated
DJ136: =DJ135/DK147 -> 0 | DK136: =DK135/DK147 -> 0.3292894281 | DL136: =DL135/DK147 -> 0.6071634893 | DM136: =DM135/DK147 -> 0.06354708261 | DN136: % | DR136: ="local_od_est_"&DI130 -> local_od_est_5 | DS136: 1 | DT136: 2 | DU136: 3 | DV136: 4 | DW136: est | DX136: tgt | DY136: err
DJ137: =RNSE(DJ135,DJ132) -> - | DK137: 0 | DL137: 0 | DM137: 0 | DN137: RNSE | DR137: 1 | DS137: =DS118 -> 0 | DT137: 110 | DU137: 1051 | DV137: 570 | DW137: =SUM(DS137:DV137) -> 1731 | DX137: =DX118 -> 1716 | DY137: =IFERROR(ABS(DW137-DX137)/DX137,0) -> 0.008741258741
DR138: 2 | DS138: 87 | DT138: 0 | DU138: 15 | DV138: 33 | DW138: =SUM(DS138:DV138) -> 135 | DX138: 135 | DY138: =IFERROR(ABS(DW138-DX138)/DX138,0) -> 0
DR139: 3 | DS139: 343 | DT139: 14 | DU139: 0 | DV139: 51 | DW139: 408 | DX139: 408 | DY139: 0
AJ140: =CHOOSE(1,AQ165&":","IX_NAME",AK140) -> 3: | AK140: High Crossing Blvd & SB I-39/90/94 On-Ramp | BL140: =CHOOSE(1,BL165&":","IX_NAME",BM140) -> 4: | BM140: High Crossing Blvd & NB I-39/90/94 Off-Ramp | DR140: 4 | DS140: 120 | DT140: 13 | DU140: 24 | DV140: 0 | DW140: 157 | DX140: 157 | DY140: 0
AK141: Raw Count Date: | AL141: 2012-05-05 | BM141: Raw Count Date: | BN141: 2012-05-05 | DR141: est | DS141: =SUM(DS137:DS140) -> 550 | DT141: =SUM(DT137:DT140) -> 137 | DU141: 1090 | DV141: 654
AF142: Local OD Raw | BP142: Local OD Raw | DR142: tgt | DS142: =DS123 -> 532 | DT142: 137 | DU142: 1090 | DV142: 654
AF143: ="local_od_raw_"&AQ165 -> local_od_raw_3 | AG143: 1 | AH143: 2 | AI143: 4 | AJ143: est | AK143: tgt | AL143: err | BP143: ="local_od_raw_"&BL165 -> local_od_raw_4 | BQ143: 1 | BR143: 2 | BS143: 4 | BT143: est | BU143: tgt | BV143: err | DR143: err | DS143: =IFERROR(ABS(DS141-DS142)/DS142,0) -> 0.03383458647 | DT143: =IFERROR(ABS(DT141-DT142)/DT142,0) -> 0 | DU143: 0 | DV143: 0 | DY143: =SUM(DS143:DV143,DY137:DY140) -> 0.04257584521
AF144: 1 | AG144: 0 | AH144: 0 | AI144: 0 | AJ144: =SUM(AG144:AI144) -> 0 | AK144: 0 | AL144: =IFERROR(ABS(AJ144-AK144)/AK144,0) -> 0 | BP144: 1 | BQ144: 0 | BR144: =BN167 -> 394 | BS144: =BM167 -> 141 | BT144: =SUM(BQ144:BS144) -> 535 | BU144: =BO176 -> 470 | BV144: =IFERROR(ABS(BT144-BU144)/BU144,0) -> 0.1382978723
AF145: 2 | AG145: =AS163 -> 175 | AH145: =AS164 -> 0 | AI145: =AS162 -> 279 | AJ145: =SUM(AG145:AI145) -> 454 | AK145: =BA162 -> 459 | AL145: =IFERROR(ABS(AJ145-AK145)/AK145,0) -> 0.01089324619 | BP145: 2 | BQ145: 0 | BR145: =BN164 -> 0 | BS145: =BN163 -> 323 | BT145: =SUM(BQ145:BS145) -> 323 | BU145: =BW162 -> 323 | BV145: =IFERROR(ABS(BT145-BU145)/BU145,0) -> 0 | DF145: =IF(DG148<>"",AVERAGE(DG145,DG148),DG145) -> 532 | DG145: =SUM(DJ135,DN128,DF125,DD134) -> 550 | DH145: =SUM(DJ132,DK128,DF128,DG134) -> 550
AF146: 4 | AG146: =AO168 -> 85 | AH146: =AO167 -> 145 | AI146: =AO166 -> 0 | AJ146: =SUM(AG146:AI146) -> 230 | AK146: =AF168 -> 230 | AL146: =IFERROR(ABS(AJ146-AK146)/AK146,0) -> 0 | BP146: 4 | BQ146: 0 | BR146: =BJ167 -> 145 | BS146: =BJ166 -> 0 | BT146: =SUM(BQ146:BS146) -> 145 | BU146: =BB168 -> 145 | BV146: =IFERROR(ABS(BT146-BU146)/BU146,0) -> 0 | DF146: target | DG146: $ | DH146: $ | DJ146: # | DK146: # | DL146: target
AF147: est | AG147: =SUM(AG144:AG146) -> 260 | AH147: =SUM(AH144:AH146) -> 145 | AI147: =SUM(AI144:AI146) -> 279 | BP147: est | BQ147: =SUM(BQ144:BQ146) -> 0 | BR147: =SUM(BR144:BR146) -> 539 | BS147: =SUM(BS144:BS146) -> 464 | DF147: imbal | DG147: =IF(DG148<>"",DG148-DG145,0) -> -36 | DH147: =IF(DH148<>"",DH148-DH145,0) -> 0 | DJ147: =SUM(DJ132:DM132) -> 1731 | DK147: =SUM(DJ135:DM135) -> 1731 | DL147: =IF(DK150<>"",AVERAGE(DK147,DK150),DK147) -> 1716
AF148: tgt | AG148: =AN176 -> 250 | AH148: =AY168 -> 145 | AI148: =AH162 -> 279 | BP148: tgt | BQ148: 0 | BR148: =BU168 -> 539 | BS148: =BD162 -> 459 | DG148: =DG183-DF171+DH156 -> 514 | DJ148: =IF(DJ147<>"",DJ147-DJ150,0) -> 1731 | DK148: =IF(DK147<>"",DK147-DK150,0) -> 30 | DL148: imbal
AF149: err | AG149: =IFERROR(ABS(AG147-AG148)/AG148,0) -> 0.04 | AH149: =IFERROR(ABS(AH147-AH148)/AH148,0) -> 0 | AI149: =IFERROR(ABS(AI147-AI148)/AI148,0) -> 0 | AL149: =SUM(AG149:AI149,AL144:AL146) -> 0.05089324619 | BP149: err | BQ149: =IFERROR(ABS(BQ147-BQ148)/BQ148,0) -> 0 | BR149: =IFERROR(ABS(BR147-BR148)/BR148,0) -> 0 | BS149: =IFERROR(ABS(BS147-BS148)/BS148,0) -> 0.01089324619 | BV149: =SUM(BQ149:BS149,BV144:BV146) -> 0.1491911185 | DG149: $ | DK149: #
DK150: =SUM(DK155,DK177,DK185) -> 1701
DK154: =CHOOSE(1,"<","LINK",DL155,DK155) -> <
DK155: =INDEX(Freeway_Import!$H$10:$H$101, MATCH(DL155,Freeway_Import!$C$10:$C$101,0)) -> 320 | DL155: LINK_4020
DH156: =INDEX(Freeway_Import!$H$10:$H$101, MATCH(DG157,Freeway_Import!$C$10:$C$101,0)) -> 290
DG157: LINK_4060 | DH157: =CHOOSE(1,"8","LINK",DG157,DH156) -> 8
AS161: raw | AT161: % | AV161: bal | AW161: % | AX161: RNSE | DB161: US 151 | ED161: US 151 | FD161: US 151
AF162: imbal | AG162: target | AH162: =IF(AE163<>"",AVERAGE(AH163,AE163),AH163) -> 279 | AR162: =CHOOSE(1,"!","TURN",7,AQ165,AS162,AV162) -> ! | AS162: 279 | AT162: =AS162/BA164 -> 0.6145374449 | AU162: ! | AV162: =AI184 -> 279 | AW162: =AV162/BA163 -> 0.6145374449 | AX162: =RNSE(AV162,AS162) -> 0 | AZ162: target | BA162: =IF(BD163<>"",AVERAGE(BA163,BD163),BA163) -> 459 | BB162: imbal | BC162: target | BD162: =IF(BA163<>"",AVERAGE(BD163,BA163),BD163) -> 459 | BN162: raw | BO162: % | BQ162: bal | BR162: % | BS162: RNSE | BV162: target | BW162: =IF(BZ163<>"",AVERAGE(BW163,BZ163),BW163) -> 323
AF163: =IF(AE163<>"",AE163-AH163,0) -> 0 | AG163: ! | AH163: =SUM(AL166,AV162) -> 279 | AR163: =CHOOSE(1,">","TURN",6,AQ165,AS163,AV163) -> > | AS163: 175 | AT163: =AS163/BA164 -> 0.3854625551 | AU163: > | AV163: =AG184 -> 175 | AW163: =AV163/BA163 -> 0.3854625551 | AX163: 0 | AZ163: ! | BA163: =SUM(AV162:AV164) -> 454 | BB163: =IF(BA163<>"",BA163-BD163,0) -> -10 | BC163: ! | BD163: =SUM(BM170,BQ163,BG166) -> 464 | BM163: =CHOOSE(1,"!","TURN",7,BL165,BN163,BQ163) -> ! | BN163: 323 | BO163: =BN163/BW164 -> 1 | BP163: ! | BQ163: =BS184 -> 323 | BR163: =BQ163/BW163 -> 1 | BS163: =RNSE(BQ163,BN163) -> 0 | BV163: ! | BW163: =SUM(BQ163:BQ164) -> 323
AF164: =IF(AE164<>"",AE164-AH164,0) -> 0 | AG164: ! | AH164: =SUM(AO166,AS162) -> 279 | AL164: High Crossing Blvd | AR164: =CHOOSE(1,"N","TURN",5,AQ165,AS164,AV164) -> N | AS164: 0 | AT164: =AS164/BA164 -> 0 | AU164: N | AV164: =AH184 -> 0 | AW164: =AV164/BA163 -> 0 | AX164: - | AZ164: ! | BA164: =SUM(AS162:AS164) -> 454 | BB164: =IF(BA164<>"",BA164-BD164,0) -> -10 | BC164: ! | BD164: =SUM(BM167,BN163,BJ166) -> 464 | BJ164: High Crossing Blvd | BM164: =CHOOSE(1,"N","TURN",5,BL165,BN164,BQ164) -> N | BN164: 0 | BO164: =BN164/BW164 -> 0 | BP164: N | BQ164: =BR184 -> 0 | BR164: =BQ164/BW163 -> 0 | BS164: =RNSE(BQ164,BN164) -> - | BV164: ! | BW164: =SUM(BN163:BN164) -> 323
AQ165: 3 | BL165: 4
AF166: =SUM(AO166:AO168) -> 230 | AG166: " | AJ166: =RNSE(AL166,AO166) -> - | AK166: =AL166/AF167 -> 0 | AL166: =AI185 -> 0 | AM166: O | AN166: =AO166/AF166 -> 0 | AO166: 0 | AP166: =CHOOSE(1,"O","TURN",13,AQ165,AO166,AL166) -> O | AY166: =SUM(AS164,AO167) -> 145 | AZ166: " | BA166: =IF(BB166<>"",BB166-AY166,0) -> 0 | BB166: =SUM(BJ166:BJ167) -> 145 | BC166: " | BE166: =RNSE(BG166,BJ166) -> - | BF166: =BG166/BB167 -> 0 | BG166: =BS185 -> 0 | BH166: O | BI166: =BJ166/BB166 -> 0 | BJ166: 0 | BK166: =CHOOSE(1,"O","TURN",13,BL165,BJ166,BG166) -> O | BM166: =CHOOSE(1,":","TURN",2,BL165,BM167,BM170) -> : | BN166: =CHOOSE(1,";","TURN",4,BL165,BN167,BN170) -> ; | BU166: =SUM(BN164,BJ167,BN167) -> 539 | BV166: " | BW166: =IF(BX166<>"",BX166-BU166,0) -> 0
AF167: =SUM(AL166:AL168) -> 230 | AG167: " | AJ167: =RNSE(AL167,AO167) -> 0 | AK167: =AL167/AF167 -> 0.6304347826 | AL167: =AH185 -> 145 | AM167: " | AN167: =AO167/AF166 -> 0.6304347826 | AO167: 145 | AP167: =CHOOSE(1,"""","TURN",15,AQ165,AO167,AL167) -> " | AY167: =SUM(AV164,AL167) -> 145 | AZ167: " | BA167: =IF(BB167<>"",BB167-AY167,0) -> 0 | BB167: =SUM(BG166:BG167) -> 145 | BC167: " | BE167: =RNSE(BG167,BJ167) -> 0 | BF167: =BG167/BB167 -> 1 | BG167: =BR185 -> 145 | BH167: " | BI167: =BJ167/BB166 -> 1 | BJ167: 145 | BK167: =CHOOSE(1,"""","TURN",15,BL165,BJ167,BG167) -> " | BM167: 141 | BN167: 394 | BO167: raw | BU167: =SUM(BQ164,BG167,BN170) -> 539 | BV167: " | BW167: =IF(BX167<>"",BX167-BU167,0) -> 0 | EJ167: =CHOOSE(1,"#","LINK",EK168,EJ168) -> #
AF168: =IF(AC167<>"",AVERAGE(AF167,AC167),AF167) -> 230 | AG168: target | AJ168: =RNSE(AL168,AO168) -> 0 | AK168: =AL168/AF167 -> 0.3695652174 | AL168: =AG185 -> 85 | AM168: ? | AN168: =AO168/AF166 -> 0.3695652174 | AO168: 85 | AP168: =CHOOSE(1,"?","TURN",16,AQ165,AO168,AL168) -> ? | AY168: =IF(BB167<>"",AVERAGE(AY167,BB167),AY167) -> 145 | AZ168: target | BA168: imbal | BB168: =IF(AY167<>"",AVERAGE(BB167,AY167),BB167) -> 145 | BC168: target | BE168: RNSE | BF168: % | BG168: bal | BI168: % | BJ168: raw | BM168: =BM167/BM176 -> 0.2635514019 | BN168: =BN167/BM176 -> 0.7364485981 | BO168: % | BU168: =IF(BX167<>"",AVERAGE(BU167,BX167),BU167) -> 539 | BV168: target | BW168: imbal | EJ168: =INDEX(Freeway_Import!$H$10:$H$101, MATCH(EK168,Freeway_Import!$C$10:$C$101,0)) -> 70 | EK168: LINK_4040
AJ169: RNSE | AK169: % | AL169: bal | AN169: % | AO169: raw | BM169: : | BN169: ;
BM170: =BS183 -> 141 | BN170: =BR183 -> 394 | BO170: bal | EN170: =INDEX(Freeway_Import!$H$10:$H$101, MATCH(EO171,Freeway_Import!$C$10:$C$101,0)) -> 150 | EO170: =CHOOSE(1,"""","LINK",EO171,EN170) -> "
BM171: =BM170/BN176 -> 0.2635514019 | BN171: =BN170/BN176 -> 0.7364485981 | BO171: % | DF171: =INDEX(Freeway_Import!$H$10:$H$101, MATCH(DE172,Freeway_Import!$C$10:$C$101,0)) -> 130 | EO171: LINK_3090
BM172: =RNSE(BM170,BM167) -> 0 | BN172: =RNSE(BN170,BN167) -> 0 | BO172: RNSE | DE172: LINK_3060 | DF172: =CHOOSE(1,"?","LINK",DE172,DF171) -> ?
BM175: # | BN175: # | BO175: target
AN176: =IF(AO179<>"",AO179,AO176) -> 250 | AO176: =SUM(AL168,AV163) -> 260 | AP176: =SUM(AO168,AS163) -> 260 | BM176: =SUM(BM167:BN167) -> 535 | BN176: =SUM(BM170:BN170) -> 535 | BO176: =IF(BN179<>"",BN179,BN176) -> 470 | DK176: =CHOOSE(1,"#","LINK",DL177,DK177) -> #
AN177: target | AO177: $ | AP177: $ | BM177: =IF(BN179<>"",BM176-BN179,0) -> 65 | BN177: =IF(BN179<>"",BN176-BN179,0) -> 65 | BO177: imbal | DK177: =INDEX(Freeway_Import!$H$10:$H$101, MATCH(DL177,Freeway_Import!$C$10:$C$101,0)) -> 910 | DL177: LINK_3070
AN178: imbal | AO178: =IF(AO179<>"",AO179-AO176,0) -> -10 | AP178: =IF(AO179<>"",AO179-AP176,0) -> -10 | BN178: =CHOOSE(1,"#","LINK",BO179,BN179) -> #
AO179: =INDEX(Freeway_Import!$H$10:$H$101, MATCH(AN180,Freeway_Import!$C$10:$C$101,0)) -> 250 | BN179: =INDEX(Freeway_Import!$H$10:$H$101, MATCH(BO179,Freeway_Import!$C$10:$C$101,0)) -> 470 | BO179: LINK_1080
AN180: LINK_2140 | AO180: =CHOOSE(1,"$","LINK",AN180,AO179) -> $ | DG180: =DG145-DH156+DF171 -> 390
AF181: Local OD Estimated | AZ181: I-39/90/94 | BP181: Local OD Estimated | DG181: $ | DK181: #
AF182: ="local_od_est_"&AQ165 -> local_od_est_3 | AG182: 1 | AH182: 2 | AI182: 4 | AJ182: est | AK182: tgt | AL182: err | BP182: ="local_od_est_"&BL165 -> local_od_est_4 | BQ182: 1 | BR182: 2 | BS182: 4 | BT182: est | BU182: tgt | BV182: err | DF182: imbal | DG182: =IF(DG183<>"",DG183-DG180,0) -> -36 | DH182: =IF(DH183<>"",DH183-DH180,0) -> 354 | DK182: =DK147-DK155-DK177 -> 501
AF183: 1 | AG183: =AG144 -> 0 | AH183: 0 | AI183: 0 | AJ183: =SUM(AG183:AI183) -> 0 | AK183: =AK144 -> 0 | AL183: =IFERROR(ABS(AJ183-AK183)/AK183,0) -> 0 | BP183: 1 | BQ183: =BQ144 -> 0 | BR183: 394 | BS183: 141 | BT183: =SUM(BQ183:BS183) -> 535 | BU183: =BU144 -> 470 | BV183: =IFERROR(ABS(BT183-BU183)/BU183,0) -> 0.1382978723 | DF183: =IF(DG180<>"",AVERAGE(DG183,DG180),DG183) -> 372 | DG183: =SUM(DE195:DH195) -> 354 | DH183: =SUM(DE198:DH198) -> 354 | DJ183: =IF(DJ182<>"",DJ182-DJ185,0) -> 0 | DK183: =IF(DK182<>"",DK182-DK185,0) -> 30 | DL183: imbal
AF184: 2 | AG184: 175 | AH184: 0 | AI184: 279 | AJ184: =SUM(AG184:AI184) -> 454 | AK184: =AK145 -> 459 | AL184: =IFERROR(ABS(AJ184-AK184)/AK184,0) -> 0.01089324619 | BP184: 2 | BQ184: 0 | BR184: 0 | BS184: 323 | BT184: =SUM(BQ184:BS184) -> 323 | BU184: =BU145 -> 323 | BV184: =IFERROR(ABS(BT184-BU184)/BU184,0) -> 0 | DF184: target | DG184: $ | DH184: $ | DJ184: # | DK184: # | DL184: target
AF185: 4 | AG185: 85 | AH185: 145 | AI185: 0 | AJ185: =SUM(AG185:AI185) -> 230 | AK185: =AK146 -> 230 | AL185: =IFERROR(ABS(AJ185-AK185)/AK185,0) -> 0 | BP185: 4 | BQ185: 0 | BR185: 145 | BS185: 0 | BT185: =SUM(BQ185:BS185) -> 145 | BU185: =BU146 -> 145 | BV185: =IFERROR(ABS(BT185-BU185)/BU185,0) -> 0 | DJ185: =SUM(DH198,DG202,DL202,DK196) -> 471 | DK185: =SUM(DH195,DD202,DL205,DN196) -> 471 | DL185: =IF(DK182<>"",AVERAGE(DK185,DK182),DK185) -> 486
AF186: est | AG186: =SUM(AG183:AG185) -> 260 | AH186: =SUM(AH183:AH185) -> 145 | AI186: =SUM(AI183:AI185) -> 279 | BP186: est | BQ186: =SUM(BQ183:BQ185) -> 0 | BR186: =SUM(BR183:BR185) -> 539 | BS186: =SUM(BS183:BS185) -> 464 | CU186: =CHOOSE(1,DI200&":","IX_NAME",CV186) -> 6: | CV186: High Crossing Blvd & American Pkwy / Nelson Rd & US 151 | DR186: Local OD Raw
AF187: tgt | AG187: =AG148 -> 250 | AH187: =AH148 -> 145 | AI187: =AI148 -> 279 | BP187: tgt | BQ187: =BQ148 -> 0 | BR187: =BR148 -> 539 | BS187: =BS148 -> 459 | CV187: Raw Count Date: | CW187: 2012-05-05 | DR187: ="local_od_raw_"&DI200 -> local_od_raw_6 | DS187: 1 | DT187: 2 | DU187: 3 | DV187: 4 | DW187: est | DX187: tgt | DY187: err
AF188: err | AG188: =IFERROR(ABS(AG186-AG187)/AG187,0) -> 0.04 | AH188: =IFERROR(ABS(AH186-AH187)/AH187,0) -> 0 | AI188: =IFERROR(ABS(AI186-AI187)/AI187,0) -> 0 | AL188: =SUM(AG188:AI188,AL183:AL185) -> 0.05089324619 | BP188: err | BQ188: =IFERROR(ABS(BQ186-BQ187)/BQ187,0) -> 0 | BR188: =IFERROR(ABS(BR186-BR187)/BR187,0) -> 0 | BS188: =IFERROR(ABS(BS186-BS187)/BS187,0) -> 0.01089324619 | BV188: =SUM(BQ188:BS188,BV183:BV185) -> 0.1491911185 | DR188: 1 | DS188: =DJ202 -> 0 | DT188: =DM202 -> 82 | DU188: =DL202 -> 252 | DV188: =DK202 -> 74 | DW188: =SUM(DS188:DV188) -> 408 | DX188: =DL217 -> 408 | DY188: =IFERROR(ABS(DW188-DX188)/DX188,0) -> 0
DH189: American Pkwy | DR189: 2 | DS189: =DK198 -> 24 | DT189: =DK199 -> 0 | DU189: =DK196 -> 5 | DV189: =DK197 -> 113 | DW189: =SUM(DS189:DV189) -> 142 | DX189: =DZ197 -> 166 | DY189: =IFERROR(ABS(DW189-DX189)/DX189,0) -> 0.1445783133
DR190: 3 | DS190: =DF198 -> 137 | DT190: =DG198 -> 51 | DU190: =DH198 -> 0 | DV190: =DE198 -> 166 | DW190: =SUM(DS190:DV190) -> 354 | DX190: =DF183 -> 372 | DY190: 0.04838709677
DR191: 4 | DS191: =DG204 -> 41 | DT191: =DG203 -> 100 | DU191: =DG202 -> 214 | DV191: =DG201 -> 0 | DW191: =SUM(DS191:DV191) -> 355 | DX191: =CR203 -> 355 | DY191: 0
DR192: est | DS192: =SUM(DS188:DS191) -> 202 | DT192: =SUM(DT188:DT191) -> 233 | DU192: =SUM(DU188:DU191) -> 471 | DV192: =SUM(DV188:DV191) -> 353
DD193: RNSE | DE193: =RNSE(DE195,DE198) -> 0 | DF193: =RNSE(DF195,DF198) -> 0 | DG193: 0 | DH193: - | DR193: tgt | DS193: =DF215 -> 202 | DT193: =DX203 -> 226.5 | DU193: =DL185 -> 486 | DV193: =CT197 -> 353
DD194: % | DE194: =DE195/DG183 -> 0.4689265537 | DF194: =DF195/DG183 -> 0.3870056497 | DG194: =DG195/DG183 -> 0.1440677966 | DH194: =DH195/DG183 -> 0 | DR194: err | DS194: =IFERROR(ABS(DS192-DS193)/DS193,0) -> 0 | DT194: =IFERROR(ABS(DT192-DT193)/DT193,0) -> 0.02869757174 | DU194: 0.03086419753 | DV194: 0 | DY194: =SUM(DS194:DV194,DY188:DY191) -> 0.2525271793
DD195: bal | DE195: =DV209 -> 166 | DF195: =DS209 -> 137 | DG195: =DT209 -> 51 | DH195: =DU209 -> 0 | DK195: raw | DL195: % | DN195: bal | DO195: % | DP195: RNSE
DE196: 8 | DF196: $ | DG196: 9 | DH196: M | DJ196: =CHOOSE(1,"<","TURN",8,DI200,DK196,DN196) -> < | DK196: 5 | DL196: =DK196/DZ199 -> 0.03521126761 | DM196: < | DN196: =DU208 -> 5 | DO196: =DN196/DZ198 -> 0.03521126761 | DP196: =RNSE(DN196,DK196) -> 0
CR197: imbal | CS197: target | CT197: =IF(CQ198<>"",AVERAGE(CT198,CQ198),CT198) -> 353 | DD197: % | DE197: =DE198/DH183 -> 0.4689265537 | DF197: =DF198/DH183 -> 0.3870056497 | DG197: =DG198/DH183 -> 0.1440677966 | DH197: =DH198/DH183 -> 0 | DJ197: =CHOOSE(1,"!","TURN",7,DI200,DK197,DN197) -> ! | DK197: 113 | DL197: =DK197/DZ199 -> 0.7957746479 | DM197: ! | DN197: =DV208 -> 113 | DO197: =DN197/DZ198 -> 0.7957746479 | DP197: =RNSE(DN197,DK197) -> 0 | DY197: target | DZ197: =IF(EC198<>"",AVERAGE(DZ198,EC198),DZ198) -> 166 | EA197: imbal | EC197: LINK_4030
CR198: =IF(CQ198<>"",CQ198-CT198,0) -> 0 | CS198: ! | CT198: =SUM(DD201,DK205,DN197,DE195) -> 353 | DD198: raw | DE198: 166 | DF198: 137 | DG198: 51 | DH198: 0 | DJ198: =CHOOSE(1,">","TURN",6,DI200,DK198,DN198) -> > | DK198: 24 | DL198: =DK198/DZ199 -> 0.1690140845 | DM198: > | DN198: =DS208 -> 24 | DO198: =DN198/DZ198 -> 0.1690140845 | DP198: 0 | DY198: ! | DZ198: =SUM(DN196:DN199) -> 142 | EA198: =IF(EC198<>"",DZ198-EC198,0) -> -48 | EB198: =CHOOSE(1,"!","LINK",EC197,EC198) -> ! | EC198: =INDEX(Freeway_Import!$H$10:$H$101, MATCH(EC197,Freeway_Import!$C$10:$C$101,0)) -> 190
CR199: =IF(CQ199<>"",CQ199-CT199,0) -> 0 | CS199: ! | CT199: =SUM(DG201,DK202,DK197,DE198) -> 353 | DE199: =CHOOSE(1,8,"TURN",12,DI200,DE198,DE195) -> 8 | DF199: =CHOOSE(1,"$","TURN",11,DI200,DF198,DF195) -> $ | DG199: =CHOOSE(1,"9","TURN",10,DI200,DG198,DG195) -> 9 | DH199: =CHOOSE(1,"M","TURN",9,DI200,DH198,DH195) -> M | DJ199: =CHOOSE(1,"N","TURN",5,DI200,DK199,DN199) -> N | DK199: 0 | DL199: =DK199/DZ199 -> 0 | DM199: N | DN199: =DT208 -> 0 | DO199: =DN199/DZ198 -> 0 | DP199: - | DY199: ! | DZ199: =SUM(DK196:DK199) -> 142 | EA199: =IF(EC198<>"",DZ199-EC198,0) -> -48
DI200: 6
CR201: =SUM(DG201:DG204) -> 355 | CS201: " | CZ201: High Crossing Blvd | DB201: =RNSE(DD201,DG201) -> - | DC201: =DD201/CR202 -> 0 | DD201: =DV210 -> 0 | DE201: O | DF201: =DG201/CR201 -> 0 | DG201: 0 | DH201: =CHOOSE(1,"O","TURN",13,DI200,DG201,DD201) -> O | DJ201: =CHOOSE(1,"L","TURN",1,DI200,DJ202,DJ205) -> L | DK201: =CHOOSE(1,":","TURN",2,DI200,DK202,DK205) -> : | DL201: =CHOOSE(1,"#","TURN",3,DI200,DL202,DL205) -> # | DM201: =CHOOSE(1,";","TURN",4,DI200,DM202,DM205) -> ; | DU201: US 151 Ramps | DX201: =SUM(DK199,DG198,DG203,DM202) -> 233 | DY201: " | DZ201: =IF(EA201<>"",EA201-DX201,0) -> 0
CR202: =SUM(DD201:DD204) -> 355 | CS202: " | DB202: 0 | DC202: =DD202/CR202 -> 0.6028169014 | DD202: =DU210 -> 214 | DE202: = | DF202: =DG202/CR201 -> 0.6028169014 | DG202: 214 | DH202: =CHOOSE(1,"=","TURN",14,DI200,DG202,DD202) -> = | DJ202: 0 | DK202: 74 | DL202: 252 | DM202: 82 | DN202: raw | DX202: =SUM(DN199,DG195,DD203,DM205) -> 233 | DY202: " | DZ202: =IF(EA202<>"",EA202-DX202,0) -> -13 | EA202: =SUM(EJ168,EN170) -> 220 | EB202: "
CR203: =IF(CO202<>"",AVERAGE(CR202,CO202),CR202) -> 355 | CS203: target | DB203: 0 | DC203: =DD203/CR202 -> 0.2816901408 | DD203: =DT210 -> 100 | DE203: " | DF203: =DG203/CR201 -> 0.2816901408 | DG203: 100 | DH203: =CHOOSE(1,"""","TURN",15,DI200,DG203,DD203) -> " | DJ203: =DJ202/DJ217 -> 0 | DK203: =DK202/DJ217 -> 0.181372549 | DL203: =DL202/DJ217 -> 0.6176470588 | DM203: =DM202/DJ217 -> 0.2009803922 | DN203: % | DX203: =IF(EA202<>"",AVERAGE(DX202,EA202),DX202) -> 226.5 | DY203: target | DZ203: imbal | EA203: =SUM(EJ168,EN170) -> 220 | EB203: target
DB204: 0 | DC204: =DD204/CR202 -> 0.1154929577 | DD204: =DS210 -> 41 | DE204: ? | DF204: =DG204/CR201 -> 0.1154929577 | DG204: 41 | DH204: =CHOOSE(1,"?","TURN",16,DI200,DG204,DD204) -> ? | DJ204: L | DK204: : | DL204: # | DM204: ;
DB205: RNSE | DC205: % | DD205: bal | DF205: % | DG205: raw | DJ205: =DS207 -> 0 | DK205: =DV207 -> 74 | DL205: =DU207 -> 252 | DM205: =DT207 -> 82 | DN205: bal | DR205: Local OD Estimated
DJ206: =DJ205/DK217 -> 0 | DK206: =DK205/DK217 -> 0.181372549 | DL206: =DL205/DK217 -> 0.6176470588 | DM206: =DM205/DK217 -> 0.2009803922 | DN206: % | DR206: ="local_od_est_"&DI200 -> local_od_est_6 | DS206: 1 | DT206: 2 | DU206: 3 | DV206: 4 | DW206: est | DX206: tgt | DY206: err
DJ207: =RNSE(DJ205,DJ202) -> - | DK207: 0 | DL207: 0 | DM207: 0 | DN207: RNSE | DR207: 1 | DS207: =DS188 -> 0 | DT207: 82 | DU207: 252 | DV207: 74 | DW207: =SUM(DS207:DV207) -> 408 | DX207: =DX188 -> 408 | DY207: =IFERROR(ABS(DW207-DX207)/DX207,0) -> 0
DR208: 2 | DS208: 24 | DT208: 0 | DU208: 5 | DV208: 113 | DW208: =SUM(DS208:DV208) -> 142 | DX208: 166 | DY208: =IFERROR(ABS(DW208-DX208)/DX208,0) -> 0.1445783133
DR209: 3 | DS209: 137 | DT209: 51 | DU209: 0 | DV209: 166 | DW209: 354 | DX209: 372 | DY209: 0.04838709677
DR210: 4 | DS210: 41 | DT210: 100 | DU210: 214 | DV210: 0 | DW210: 355 | DX210: 355 | DY210: 0
AZ211: I-39/90/94 | DH211: Nelson Rd | DR211: est | DS211: =SUM(DS207:DS210) -> 202 | DT211: =SUM(DT207:DT210) -> 233 | DU211: 471 | DV211: 353
DR212: tgt | DS212: =DS193 -> 202 | DT212: 226.5 | DU212: 486 | DV212: 353
DR213: err | DS213: =IFERROR(ABS(DS211-DS212)/DS212,0) -> 0 | DT213: =IFERROR(ABS(DT211-DT212)/DT212,0) -> 0.02869757174 | DU213: 0.03086419753 | DV213: 0 | DY213: =SUM(DS213:DV213,DY207:DY210) -> 0.2525271793
DF215: =IF(DG218<>"",AVERAGE(DG215,DG218),DG215) -> 202 | DG215: =SUM(DJ205,DN198,DF195,DD204) -> 202 | DH215: =SUM(DJ202,DK198,DF198,DG204) -> 202
DF216: target | DG216: $ | DH216: $ | DJ216: # | DK216: # | DL216: target
DF217: imbal | DG217: =IF(DG218<>"",DG218-DG215,0) -> 0 | DH217: =IF(DH218<>"",DH218-DH215,0) -> 0 | DJ217: =SUM(DJ202:DM202) -> 408 | DK217: =SUM(DJ205:DM205) -> 408 | DL217: =IF(DK220<>"",AVERAGE(DK217,DK220),DK217) -> 408
BC245: =IF(BD242<>"",AVERAGE(BD245,BD242),BD245) -> 847 | BD245: =SUM(BC257:BE257) -> 847 | BE245: =SUM(BC260:BE260) -> 847 | BG245: =IF(BG244<>"",BG244-BG247,0) -> 0 | BH245: =IF(BH244<>"",BH244-BH247,0) -> 0 | BI245: imbal | DD245: =IF(DE242<>"",AVERAGE(DE245,DE242),DE245) -> 556 | DE245: =SUM(DC257:DF257) -> 556 | DF245: =SUM(DC260:DF260) -> 556 | DH245: =IF(DH244<>"",DH244-DH247,0) -> 0 | DI245: =IF(DI244<>"",DI244-DI247,0) -> 0 | DJ245: imbal
BC246: target | BD246: $ | BE246: $ | BG246: # | BH246: # | BI246: target | DD246: target | DE246: $ | DF246: $ | DH246: # | DI246: # | DJ246: target
BG247: =SUM(BE260,BI264,BH259) -> 1053 | BH247: =SUM(BE257,BI267,BK259) -> 1053 | BI247: =IF(BH244<>"",AVERAGE(BH247,BH244),BH247) -> 1053 | DH247: =SUM(DF260,DE264,DJ264,DI258) -> 216 | DI247: =SUM(DF257,DB264,DJ267,DL258) -> 216 | DJ247: =IF(DI244<>"",AVERAGE(DI247,DI244),DI247) -> 216
AR248: =CHOOSE(1,BF262&":","IX_NAME",AS248) -> 7: | AS248: US 51 & WB WIS 30 Ramps | BO248: Local OD Raw | BX248: Local OD Estimated | CS248: =CHOOSE(1,DG262&":","IX_NAME",CT248) -> 9: | CT248: Thompson Dr & WB WIS 30 On-Ramp | DP248: Local OD Raw
AS249: Raw Count Date: | AT249: 2012-07-18 | BO249: ="local_od_raw_"&BF262 -> local_od_raw_7 | BP249: 1 | BQ249: 2 | BR249: 3 | BS249: 4 | BT249: est | BU249: tgt | BV249: err | BX249: ="local_od_est_"&BF262 -> local_od_est_7 | BY249: 1 | BZ249: 2 | CA249: 3 | CB249: 4 | CC249: est | CD249: tgt | CE249: err | CT249: Raw Count Date: | CU249: 2013-05-02 | DP249: ="local_od_raw_"&DG262 -> local_od_raw_9 | DQ249: 1 | DR249: 2 | DS249: 3 | DT249: 4 | DU249: est | DV249: tgt | DW249: err
BO250: 1 | BP250: =BG264 -> 0 | BQ250: 0 | BR250: =BI264 -> 710 | BS250: =BH264 -> 472 | BT250: =SUM(BP250:BS250) -> 1182 | BU250: =BI279 -> 1182 | BV250: =IFERROR(ABS(BT250-BU250)/BU250,0) -> 0 | BX250: 1 | BY250: =BP250 -> 0 | BZ250: 0 | CA250: 710 | CB250: 472 | CC250: =SUM(BY250:CB250) -> 1182 | CD250: =BU250 -> 1182 | CE250: =IFERROR(ABS(CC250-CD250)/CD250,0) -> 0 | DP250: 1 | DQ250: =DH264 -> 0 | DR250: =DK264 -> 153 | DS250: =DJ264 -> 213 | DT250: =DI264 -> 195 | DU250: =SUM(DQ250:DT250) -> 561 | DV250: =DJ279 -> 543.5 | DW250: =IFERROR(ABS(DU250-DV250)/DV250,0) -> 0.03219871205
BE251: US 51 | BO251: 2 | BP251: =BH261 -> 868 | BQ251: 0 | BR251: =BH259 -> 343 | BS251: =BH260 -> 0 | BT251: =SUM(BP251:BS251) -> 1211 | BU251: =BQ262 -> 1320 | BV251: =IFERROR(ABS(BT251-BU251)/BU251,0) -> 0.08257575758 | BX251: 2 | BY251: 868 | BZ251: 0 | CA251: 343 | CB251: 0 | CC251: =SUM(BY251:CB251) -> 1211 | CD251: =BU251 -> 1320 | CE251: =IFERROR(ABS(CC251-CD251)/CD251,0) -> 0.08257575758 | DF251: Thompson Dr | DP251: 2 | DQ251: =DI260 -> 47 | DR251: =DI261 -> 0 | DS251: =DI258 -> 3 | DT251: =DI259 -> 454 | DU251: =SUM(DQ251:DT251) -> 504 | DV251: =DX259 -> 504 | DW251: =IFERROR(ABS(DU251-DV251)/DV251,0) -> 0
BO252: 3 | BP252: =BD260 -> 813 | BQ252: 0 | BR252: =BE260 -> 0 | BS252: =BC260 -> 34 | BT252: =SUM(BP252:BS252) -> 847 | BU252: =BC245 -> 847 | BV252: 0 | BX252: 3 | BY252: 813 | BZ252: 0 | CA252: 0 | CB252: 34 | CC252: 847 | CD252: =BU252 -> 847 | CE252: 0 | DP252: 3 | DQ252: =DD260 -> 103 | DR252: =DE260 -> 5 | DS252: =DF260 -> 0 | DT252: =DC260 -> 448 | DU252: =SUM(DQ252:DT252) -> 556 | DV252: =DD245 -> 556 | DW252: 0
BO253: 4 | BP253: 0 | BQ253: 0 | BR253: 0 | BS253: 0 | BT253: =SUM(BP253:BS253) -> 0 | BU253: 0 | BV253: 0 | BX253: 4 | BY253: 0 | BZ253: 0 | CA253: 0 | CB253: 0 | CC253: 0 | CD253: =BU253 -> 0 | CE253: 0 | DP253: 4 | DQ253: =DE266 -> 0 | DR253: =DE265 -> 0 | DS253: =DE264 -> 0 | DT253: =DE263 -> 0 | DU253: =SUM(DQ253:DT253) -> 0 | DV253: =CP265 -> 0 | DW253: 0
BO254: est | BP254: =SUM(BP250:BP253) -> 1681 | BQ254: =SUM(BQ250:BQ253) -> 0 | BR254: =SUM(BR250:BR253) -> 1053 | BS254: =SUM(BS250:BS253) -> 506 | BX254: est | BY254: =SUM(BY250:BY253) -> 1681 | BZ254: =SUM(BZ250:BZ253) -> 0 | CA254: 1053 | CB254: 506 | DP254: est | DQ254: =SUM(DQ250:DQ253) -> 150 | DR254: =SUM(DR250:DR253) -> 158 | DS254: =SUM(DS250:DS253) -> 216 | DT254: =SUM(DT250:DT253) -> 1097
BB255: RNSE | BC255: =RNSE(BC257,BC260) -> 0 | BD255: =RNSE(BD257,BD260) -> 0 | BE255: =RNSE(BE257,BE260) -> - | BO255: tgt | BP255: =BC277 -> 1681 | BQ255: 0 | BR255: =BI247 -> 1053 | BS255: =AW262 -> 550 | BX255: tgt | BY255: =BP255 -> 1681 | BZ255: =BQ255 -> 0 | CA255: =BR255 -> 1053 | CB255: =BS255 -> 550 | DB255: RNSE | DC255: =RNSE(DC257,DC260) -> 0 | DD255: =RNSE(DD257,DD260) -> 0 | DE255: 0 | DF255: - | DP255: tgt | DQ255: =DD277 -> 157.5 | DR255: =DV265 -> 158 | DS255: =DJ247 -> 216 | DT255: =CR259 -> 1103.5
BB256: % | BC256: =BC257/BD245 -> 0.04014167651 | BD256: =BD257/BD245 -> 0.9598583235 | BE256: =BE257/BD245 -> 0 | BO256: err | BP256: =IFERROR(ABS(BP254-BP255)/BP255,0) -> 0 | BQ256: =IFERROR(ABS(BQ254-BQ255)/BQ255,0) -> 0 | BR256: 0 | BS256: 0.08 | BV256: =SUM(BP256:BS256,BV250:BV253) -> 0.1625757576 | BX256: err | BY256: =IFERROR(ABS(BY254-BY255)/BY255,0) -> 0 | BZ256: =IFERROR(ABS(BZ254-BZ255)/BZ255,0) -> 0 | CA256: 0 | CB256: 0.08 | CE256: =SUM(BY256:CB256,CE250:CE253) -> 0.1625757576 | DB256: % | DC256: =DC257/DE245 -> 0.8057553957 | DD256: =DD257/DE245 -> 0.1852517986 | DE256: =DE257/DE245 -> 0.008992805755 | DF256: =DF257/DE245 -> 0 | DP256: err | DQ256: =IFERROR(ABS(DQ254-DQ255)/DQ255,0) -> 0.04761904762 | DR256: =IFERROR(ABS(DR254-DR255)/DR255,0) -> 0 | DS256: 0 | DT256: 0.00589034889 | DW256: =SUM(DQ256:DT256,DW250:DW253) -> 0.08570810856
BB257: bal | BC257: =CB252 -> 34 | BD257: =BY252 -> 813 | BE257: =CA252 -> 0 | DB257: bal | DC257: =DT271 -> 448 | DD257: =DQ271 -> 103 | DE257: =DR271 -> 5 | DF257: =DS271 -> 0 | DI257: raw | DJ257: % | DL257: bal | DM257: % | DN257: RNSE
BC258: 8 | BD258: $ | BE258: M | BH258: raw | BI258: % | BK258: bal | BL258: % | BM258: RNSE | CN258: WB WIS 30 On-Ramp | DC258: 8 | DD258: $ | DE258: 9 | DF258: M | DH258: =CHOOSE(1,"<","TURN",8,DG262,DI258,DL258) -> < | DI258: 3 | DJ258: =DI258/DX261 -> 0.005952380952 | DK258: < | DL258: =DS270 -> 3 | DM258: =DL258/DX260 -> 0.005952380952 | DN258: =RNSE(DL258,DI258) -> 0
BB259: % | BC259: =BC260/BE245 -> 0.04014167651 | BD259: =BD260/BE245 -> 0.9598583235 | BE259: =BE260/BE245 -> 0 | BG259: =CHOOSE(1,"<","TURN",8,BF262,BH259,BK259) -> < | BH259: 343 | BI259: =BH259/BQ264 -> 0.2832369942 | BJ259: < | BK259: =CA251 -> 343 | BL259: =BK259/BQ263 -> 0.2832369942 | BM259: =RNSE(BK259,BH259) -> 0 | CN259: LINK_6070 | CP259: imbal | CQ259: target | CR259: =IF(CO260<>"",AVERAGE(CR260,CO260),CR260) -> 1103.5 | DB259: % | DC259: =DC260/DF245 -> 0.8057553957 | DD259: =DD260/DF245 -> 0.1852517986 | DE259: =DE260/DF245 -> 0.008992805755 | DF259: =DF260/DF245 -> 0 | DH259: =CHOOSE(1,"!","TURN",7,DG262,DI259,DL259) -> ! | DI259: 454 | DJ259: =DI259/DX261 -> 0.9007936508 | DK259: ! | DL259: =DT270 -> 454 | DM259: =DL259/DX260 -> 0.9007936508 | DN259: =RNSE(DL259,DI259) -> 0 | DW259: target | DX259: =IF(EA260<>"",AVERAGE(DX260,EA260),DX260) -> 504
BB260: raw | BC260: 34 | BD260: 813 | BE260: 0 | BG260: =CHOOSE(1,"!","TURN",7,BF262,BH260,BK260) -> ! | BH260: 0 | BI260: =BH260/BQ264 -> 0 | BJ260: ! | BK260: =CB251 -> 0 | BL260: =BK260/BQ263 -> 0 | BM260: =RNSE(BK260,BH260) -> - | CN260: =CHOOSE(1,"!","LINK",CN259,CO260) -> ! | CO260: =INDEX(Freeway_Import!$H$10:$H$101, MATCH(CN259,Freeway_Import!$C$10:$C$101,0)) -> 1110 | CP260: =IF(CO260<>"",CO260-CR260,0) -> 13 | CQ260: ! | CR260: =SUM(DB263,DI267,DL259,DC257) -> 1097 | DB260: raw | DC260: 448 | DD260: 103 | DE260: 5 | DF260: 0 | DH260: =CHOOSE(1,">","TURN",6,DG262,DI260,DL260) -> > | DI260: 47 | DJ260: =DI260/DX261 -> 0.09325396825 | DK260: > | DL260: =DQ270 -> 47 | DM260: =DL260/DX260 -> 0.09325396825 | DN260: 0 | DW260: ! | DX260: =SUM(DL258:DL261) -> 504
BC261: =CHOOSE(1,8,"TURN",12,BF262,BC260,BC257) -> 8 | BD261: =CHOOSE(1,"$","TURN",11,BF262,BD260,BD257) -> $ | BE261: =CHOOSE(1,"M","TURN",9,BF262,BE260,BE257) -> M | BG261: =CHOOSE(1,">","TURN",6,BF262,BH261,BK261) -> > | BH261: 868 | BI261: =BH261/BQ264 -> 0.7167630058 | BJ261: > | BK261: =BY251 -> 868 | BL261: =BK261/BQ263 -> 0.7167630058 | BM261: =RNSE(BK261,BH261) -> 0 | CP261: =IF(CO261<>"",CO261-CR261,0) -> 0 | CQ261: ! | CR261: =SUM(DE263,DI264,DI259,DC260) -> 1097 | DC261: =CHOOSE(1,8,"TURN",12,DG262,DC260,DC257) -> 8 | DD261: =CHOOSE(1,"$","TURN",11,DG262,DD260,DD257) -> $ | DE261: =CHOOSE(1,"9","TURN",10,DG262,DE260,DE257) -> 9 | DF261: =CHOOSE(1,"M","TURN",9,DG262,DF260,DF257) -> M | DH261: =CHOOSE(1,"N","TURN",5,DG262,DI261,DL261) -> N | DI261: 0 | DJ261: =DI261/DX261 -> 0 | DK261: N | DL261: =DR270 -> 0 | DM261: =DL261/DX260 -> 0 | DN261: - | DW261: ! | DX261: =SUM(DI258:DI261) -> 504
AS262: LINK_6100 | AU262: imbal | AV262: target | AW262: =IF(AT263<>"",AT263,AW263) -> 550 | BF262: 7 | BP262: target | BQ262: =IF(BT263<>"",BT263,BQ263) -> 1320 | BR262: imbal | BT262: LINK_6090 | DG262: 9
AS263: =CHOOSE(1,"!","LINK",AS262,AT263) -> ! | AT263: =INDEX(Freeway_Import!$H$10:$H$101, MATCH(AS262,Freeway_Import!$C$10:$C$101,0)) -> 550 | AU263: =IF(AT263<>"",AT263-AW263,0) -> 44 | AV263: ! | AW263: =SUM(BH267,BC257,BK260) -> 506 | BG263: =CHOOSE(1,"L","TURN",1,BF262,BG264,BG267) -> L | BH263: =CHOOSE(1,":","TURN",2,BF262,BH264,BH267) -> : | BI263: =CHOOSE(1,"#","TURN",3,BF262,BI264,BI267) -> # | BP263: ! | BQ263: =SUM(BK259:BK261) -> 1211 | BR263: =IF(BT263<>"",BQ263-BT263,0) -> -109 | BS263: =CHOOSE(1,"!","LINK",BT262,BT263) -> ! | BT263: =INDEX(Freeway_Import!$H$10:$H$101, MATCH(BT262,Freeway_Import!$C$10:$C$101,0)) -> 1320 | CP263: =SUM(DE263:DE266) -> 0 | CQ263: " | CZ263: =RNSE(DB263,DE263) -> - | DA263: =DB263/CP264 ->  | DB263: =DT272 -> 0 | DC263: O | DD263: =DE263/CP263 ->  | DE263: 0 | DF263: =CHOOSE(1,"O","TURN",13,DG262,DE263,DB263) -> O | DH263: =CHOOSE(1,"L","TURN",1,DG262,DH264,DH267) -> L | DI263: =CHOOSE(1,":","TURN",2,DG262,DI264,DI267) -> : | DJ263: =CHOOSE(1,"#","TURN",3,DG262,DJ264,DJ267) -> # | DK263: =CHOOSE(1,";","TURN",4,DG262,DK264,DK267) -> ; | DQ263: Commercial Ave | DV263: =SUM(DI261,DE260,DE265,DK264) -> 158 | DW263: " | DX263: =IF(DY263<>"",DY263-DV263,0) -> 0
AU264: =IF(AT263<>"",AT263-AW264,0) -> 44 | AV264: ! | AW264: =SUM(BH264,BC260,BH260) -> 506 | BG264: 0 | BH264: 472 | BI264: 710 | BJ264: raw | BP264: ! | BQ264: =SUM(BH259:BH261) -> 1211 | BR264: =IF(BT263<>"",BQ264-BT263,0) -> -109 | CP264: =SUM(DB263:DB266) -> 0 | CQ264: " | CR264: From Pully Dr (not Included) | CZ264: - | DA264: =DB264/CP264 ->  | DB264: =DS272 -> 0 | DC264: = | DD264: =DE264/CP263 ->  | DE264: 0 | DF264: =CHOOSE(1,"=","TURN",14,DG262,DE264,DB264) -> = | DH264: 0 | DI264: 195 | DJ264: 213 | DK264: 153 | DL264: raw | DV264: =SUM(DL261,DE257,DB265,DK267) -> 158 | DW264: " | DX264: =IF(DY264<>"",DY264-DV264,0) -> 0
BG265: =BG264/BG279 -> 0 | BH265: =BH264/BG279 -> 0.399323181 | BI265: =BI264/BG279 -> 0.600676819 | BJ265: % | CP265: =IF(CM264<>"",AVERAGE(CP264,CM264),CP264) -> 0 | CQ265: target | CZ265: - | DA265: =DB265/CP264 ->  | DB265: =DR272 -> 0 | DC265: " | DD265: =DE265/CP263 ->  | DE265: 0 | DF265: =CHOOSE(1,"""","TURN",15,DG262,DE265,DB265) -> " | DH265: =DH264/DH279 -> 0 | DI265: =DI264/DH279 -> 0.3475935829 | DJ265: =DJ264/DH279 -> 0.3796791444 | DK265: =DK264/DH279 -> 0.2727272727 | DL265: % | DV265: =IF(DY264<>"",AVERAGE(DV264,DY264),DV264) -> 158 | DW265: target | DX265: imbal
BG266: L | BH266: : | BI266: # | CZ266: - | DA266: =DB266/CP264 ->  | DB266: =DQ272 -> 0 | DC266: ? | DD266: =DE266/CP263 ->  | DE266: 0 | DF266: =CHOOSE(1,"?","TURN",16,DG262,DE266,DB266) -> ? | DH266: L | DI266: : | DJ266: # | DK266: ;
BG267: =BY250 -> 0 | BH267: =CB250 -> 472 | BI267: =CA250 -> 710 | BJ267: bal | CZ267: RNSE | DA267: % | DB267: bal | DD267: % | DE267: raw | DH267: =DQ269 -> 0 | DI267: =DT269 -> 195 | DJ267: =DS269 -> 213 | DK267: =DR269 -> 153 | DL267: bal | DP267: Local OD Estimated
BG268: =BG267/BH279 -> 0 | BH268: =BH267/BH279 -> 0.399323181 | BI268: =BI267/BH279 -> 0.600676819 | BJ268: % | DH268: =DH267/DI279 -> 0 | DI268: =DI267/DI279 -> 0.3475935829 | DJ268: =DJ267/DI279 -> 0.3796791444 | DK268: =DK267/DI279 -> 0.2727272727 | DL268: % | DP268: ="local_od_est_"&DG262 -> local_od_est_9 | DQ268: 1 | DR268: 2 | DS268: 3 | DT268: 4 | DU268: est | DV268: tgt | DW268: err
BG269: =RNSE(BG267,BG264) -> - | BH269: 0 | BI269: 0 | BJ269: RNSE | DH269: =RNSE(DH267,DH264) -> - | DI269: 0 | DJ269: 0 | DK269: 0 | DL269: RNSE | DP269: 1 | DQ269: =DQ250 -> 0 | DR269: 153 | DS269: 213 | DT269: 195 | DU269: =SUM(DQ269:DT269) -> 561 | DV269: =DV250 -> 543.5 | DW269: =IFERROR(ABS(DU269-DV269)/DV269,0) -> 0.03219871205
DP270: 2 | DQ270: 47 | DR270: 0 | DS270: 3 | DT270: 454 | DU270: =SUM(DQ270:DT270) -> 504 | DV270: 504 | DW270: =IFERROR(ABS(DU270-DV270)/DV270,0) -> 0
DP271: 3 | DQ271: 103 | DR271: 5 | DS271: 0 | DT271: 448 | DU271: 556 | DV271: 556 | DW271: 0
DP272: 4 | DQ272: 0 | DR272: 0 | DS272: 0 | DT272: 0 | DU272: 0 | DV272: 0 | DW272: 0
DP273: est | DQ273: =SUM(DQ269:DQ272) -> 150 | DR273: =SUM(DR269:DR272) -> 158 | DS273: 216 | DT273: 1097
... 33 more rows

Sheet Listing
I2: Project | J2: =Schematic!$L$3 -> Sample Freeway & Intersection Balancing
I3: Scenario | J3: =Schematic!$L$4 -> Year 2012 AM Peak
C5: Intersection Numbers & Names | G5: Intersection Turning Movement Volume Comparison | T5: Imbalance Cells
M7: Volume
C8: Intersection Number | D8: Intersection Name | G8: SORT | H8: TURN_ID | I8: Intersection Number | J8: Intersection | K8: Intersection | L8: Turn | M8: Raw | N8: Balanced | O8: Diff. (Bal - Raw) | P8: RNSE | T8: Cell | U8: Value
C9: 1 | D9: =Schematic!$AJ$30 -> US 51 & NB I-39/90/94 Ramps | G9: 1 | H9: TURN_001_03 | I9: 1 | J9: =INDEX($D$9:$D$18, MATCH($I9,$C$9:$C$18,0)) -> US 51 & NB I-39/90/94 Ramps | K9: =INDEX($D$9:$D$18, MATCH($I9,$C$9:$C$18,0)) -> US 51 & NB I-39/90/94 Ramps | L9: NBT | M9: =INDIRECT(H9 & "_raw") -> 312 | N9: =INDIRECT(H9 & "_bal") -> 312 | O9: =$N9-$M9 -> 0 | P9: =IF($M9>0, SQRT($O9^2/$M9),"") -> 0 | T9: =CELL("address",Schematic!$AY$27) -> '[Intersection_EXAMPLE (Tool v5.8.1).xlsm]Schematic'!$AY$27 | U9: =INDIRECT($T9) -> 0
C10: 2 | D10: =Schematic!$AJ$65 -> US 51 & SB I-39/90/94 Ramps | G10: 2 | H10: TURN_001_04 | I10: 1 | K10: US 51 & NB I-39/90/94 Ramps | L10: NBR | M10: 143 | N10: 143 | O10: 0 | P10: 0 | T10: =CELL("address",Schematic!$AF$42) -> '[Intersection_EXAMPLE (Tool v5.8.1).xlsm]Schematic'!$AF$42 | U10: 28
C11: 3 | D11: =Schematic!$AK$140 -> High Crossing Blvd & SB I-39/90/94 On-Ramp | G11: 3 | H11: TURN_001_06 | I11: 1 | K11: US 51 & NB I-39/90/94 Ramps | L11: WBL | M11: 91 | N11: 91 | O11: 0 | P11: 0 | T11: =CELL("address",Schematic!$BO$42) -> '[Intersection_EXAMPLE (Tool v5.8.1).xlsm]Schematic'!$BO$42 | U11: 8
C12: 4 | D12: =Schematic!$BM$140 -> High Crossing Blvd & NB I-39/90/94 Off-Ramp | G12: 4 | H12: TURN_001_08 | I12: 1 | K12: US 51 & NB I-39/90/94 Ramps | L12: WBR | M12: 217 | N12: 217 | O12: 0 | P12: 0 | T12: =CELL("address",Schematic!$BN$46) -> '[Intersection_EXAMPLE (Tool v5.8.1).xlsm]Schematic'!$BN$46 | U12: -33
C13: 5 | D13: =Schematic!$CV$116 -> American Pkwy & Eastpark Blvd | G13: 5 | H13: TURN_001_11 | I13: 1 | K13: US 51 & NB I-39/90/94 Ramps | L13: SBT | M13: 1193 | N13: 1193 | O13: 0 | P13: 0 | T13: =CELL("address",Schematic!$AU$61) -> '[Intersection_EXAMPLE (Tool v5.8.1).xlsm]Schematic'!$AU$61 | U13: 49
C14: 6 | D14: =Schematic!$CV$186 -> High Crossing Blvd & American Pkwy / Nelson Rd & US 151 | G14: 6 | H14: TURN_001_12 | I14: 1 | K14: US 51 & NB I-39/90/94 Ramps | L14: SBR | M14: 12 | N14: 12 | O14: 0 | P14: 0 | T14: =CELL("address",Schematic!$AY$62) -> '[Intersection_EXAMPLE (Tool v5.8.1).xlsm]Schematic'!$AY$62 | U14: 29
C15: 7 | D15: =Schematic!$AS$248 -> US 51 & WB WIS 30 Ramps | G15: 7 | H15: TURN_002_03 | I15: 2 | J15: =INDEX($D$9:$D$18, MATCH($I15,$C$9:$C$18,0)) -> US 51 & SB I-39/90/94 Ramps | K15: US 51 & SB I-39/90/94 Ramps | L15: NBT | M15: 423 | N15: 423 | O15: 0 | P15: 0 | T15: =CELL("address",Schematic!$AF$77) -> '[Intersection_EXAMPLE (Tool v5.8.1).xlsm]Schematic'!$AF$77 | U15: -109
C16: 8 | D16: =Schematic!$AS$308 -> US 51 & EB WIS 30 Ramps | G16: 8 | H16: TURN_002_04 | I16: 2 | K16: US 51 & SB I-39/90/94 Ramps | L16: NBR | M16: 76 | N16: 76 | O16: 0 | P16: 0 | T16: =CELL("address",Schematic!$AE$81) -> '[Intersection_EXAMPLE (Tool v5.8.1).xlsm]Schematic'!$AE$81 | U16: -121
C17: 9 | D17: =Schematic!$CT$248 -> Thompson Dr & WB WIS 30 On-Ramp | G17: 9 | H17: TURN_002_11 | I17: 2 | K17: US 51 & SB I-39/90/94 Ramps | L17: SBT | M17: 1064 | N17: 1064 | O17: 0 | P17: 0 | T17: =CELL("address",Schematic!$BN$81) -> '[Intersection_EXAMPLE (Tool v5.8.1).xlsm]Schematic'!$BN$81 | U17: 74
C18: 10 | D18: =Schematic!$CT$308 -> Thompson Dr & EB WIS 30Off-Ramp | G18: 10 | H18: TURN_002_12 | I18: 2 | K18: US 51 & SB I-39/90/94 Ramps | L18: SBR | M18: 269 | N18: 269 | O18: 0 | P18: 0 | T18: =CELL("address",Schematic!$AU$96) -> '[Intersection_EXAMPLE (Tool v5.8.1).xlsm]Schematic'!$AU$96 | U18: 0
G19: 11 | H19: TURN_002_14 | I19: 2 | K19: US 51 & SB I-39/90/94 Ramps | L19: EBL | M19: 3 | N19: 3 | O19: 0 | P19: 0 | T19: =CELL("address",Schematic!$DK$113) -> '[Intersection_EXAMPLE (Tool v5.8.1).xlsm]Schematic'!$DK$113 | U19: 0
G20: 12 | H20: TURN_002_16 | I20: 2 | K20: US 51 & SB I-39/90/94 Ramps | L20: EBR | M20: 786 | N20: 786 | O20: 0 | P20: 0 | T20: =CELL("address",Schematic!$CR$128) -> '[Intersection_EXAMPLE (Tool v5.8.1).xlsm]Schematic'!$CR$128 | U20: 0
G21: 13 | H21: TURN_003_05 | I21: 3 | J21: =INDEX($D$9:$D$18, MATCH($I21,$C$9:$C$18,0)) -> High Crossing Blvd & SB I-39/90/94 On-Ramp | K21: High Crossing Blvd & SB I-39/90/94 On-Ramp | L21: WBU | M21: 0 | N21: 0 | O21: 0 | T21: =CELL("address",Schematic!$DZ$132) -> '[Intersection_EXAMPLE (Tool v5.8.1).xlsm]Schematic'!$DZ$132 | U21: 0
G22: 14 | H22: TURN_003_06 | I22: 3 | K22: High Crossing Blvd & SB I-39/90/94 On-Ramp | L22: WBL | M22: 175 | N22: 175 | O22: 0 | P22: 0 | T22: =CELL("address",Schematic!$DG$147) -> '[Intersection_EXAMPLE (Tool v5.8.1).xlsm]Schematic'!$DG$147 | U22: -36
G23: 15 | H23: TURN_003_07 | I23: 3 | K23: High Crossing Blvd & SB I-39/90/94 On-Ramp | L23: WBT | M23: 279 | N23: 279 | O23: 0 | P23: 0 | T23: =CELL("address",Schematic!$DK$148) -> '[Intersection_EXAMPLE (Tool v5.8.1).xlsm]Schematic'!$DK$148 | U23: 30
G24: 16 | H24: TURN_003_13 | I24: 3 | K24: High Crossing Blvd & SB I-39/90/94 On-Ramp | L24: EBU | M24: 0 | N24: 0 | O24: 0 | T24: =CELL("address",Schematic!$AF$163) -> '[Intersection_EXAMPLE (Tool v5.8.1).xlsm]Schematic'!$AF$163 | U24: 0
G25: 17 | H25: TURN_003_15 | I25: 3 | K25: High Crossing Blvd & SB I-39/90/94 On-Ramp | L25: EBT | M25: 145 | N25: 145 | O25: 0 | P25: 0 | T25: =CELL("address",Schematic!$BB$163) -> '[Intersection_EXAMPLE (Tool v5.8.1).xlsm]Schematic'!$BB$163 | U25: -10
G26: 18 | H26: TURN_003_16 | I26: 3 | K26: High Crossing Blvd & SB I-39/90/94 On-Ramp | L26: EBR | M26: 85 | N26: 85 | O26: 0 | P26: 0 | T26: =CELL("address",Schematic!$BA$167) -> '[Intersection_EXAMPLE (Tool v5.8.1).xlsm]Schematic'!$BA$167 | U26: 0
G27: 19 | H27: TURN_004_02 | I27: 4 | J27: =INDEX($D$9:$D$18, MATCH($I27,$C$9:$C$18,0)) -> High Crossing Blvd & NB I-39/90/94 Off-Ramp | K27: High Crossing Blvd & NB I-39/90/94 Off-Ramp | L27: NBL | M27: 141 | N27: 141 | O27: 0 | P27: 0 | T27: =CELL("address",Schematic!$BW$167) -> '[Intersection_EXAMPLE (Tool v5.8.1).xlsm]Schematic'!$BW$167 | U27: 0
G28: 20 | H28: TURN_004_04 | I28: 4 | K28: High Crossing Blvd & NB I-39/90/94 Off-Ramp | L28: NBR | M28: 394 | N28: 394 | O28: 0 | P28: 0 | T28: =CELL("address",Schematic!$BN$177) -> '[Intersection_EXAMPLE (Tool v5.8.1).xlsm]Schematic'!$BN$177 | U28: 65
G29: 21 | H29: TURN_004_05 | I29: 4 | K29: High Crossing Blvd & NB I-39/90/94 Off-Ramp | L29: WBU | M29: 0 | N29: 0 | O29: 0 | T29: =CELL("address",Schematic!$AO$178) -> '[Intersection_EXAMPLE (Tool v5.8.1).xlsm]Schematic'!$AO$178 | U29: -10
G30: 22 | H30: TURN_004_07 | I30: 4 | K30: High Crossing Blvd & NB I-39/90/94 Off-Ramp | L30: WBT | M30: 323 | N30: 323 | O30: 0 | P30: 0 | T30: =CELL("address",Schematic!$DG$182) -> '[Intersection_EXAMPLE (Tool v5.8.1).xlsm]Schematic'!$DG$182 | U30: -36
G31: 23 | H31: TURN_004_13 | I31: 4 | K31: High Crossing Blvd & NB I-39/90/94 Off-Ramp | L31: EBU | M31: 0 | N31: 0 | O31: 0 | T31: =CELL("address",Schematic!$DK$183) -> '[Intersection_EXAMPLE (Tool v5.8.1).xlsm]Schematic'!$DK$183 | U31: 30
G32: 24 | H32: TURN_004_15 | I32: 4 | K32: High Crossing Blvd & NB I-39/90/94 Off-Ramp | L32: EBT | M32: 145 | N32: 145 | O32: 0 | P32: 0 | T32: =CELL("address",Schematic!$CR$198) -> '[Intersection_EXAMPLE (Tool v5.8.1).xlsm]Schematic'!$CR$198 | U32: 0
G33: 25 | H33: TURN_005_01 | I33: 5 | J33: =INDEX($D$9:$D$18, MATCH($I33,$C$9:$C$18,0)) -> American Pkwy & Eastpark Blvd | K33: American Pkwy & Eastpark Blvd | L33: NBU | M33: 0 | N33: 0 | O33: 0 | T33: =CELL("address",Schematic!$EA$198) -> '[Intersection_EXAMPLE (Tool v5.8.1).xlsm]Schematic'!$EA$198 | U33: -48
G34: 26 | H34: TURN_005_02 | I34: 5 | K34: American Pkwy & Eastpark Blvd | L34: NBL | M34: 570 | N34: 570 | O34: 0 | P34: 0 | T34: =CELL("address",Schematic!$DZ$202) -> '[Intersection_EXAMPLE (Tool v5.8.1).xlsm]Schematic'!$DZ$202 | U34: -13
G35: 27 | H35: TURN_005_03 | I35: 5 | K35: American Pkwy & Eastpark Blvd | L35: NBT | M35: 1051 | N35: 1051 | O35: 0 | P35: 0 | T35: =CELL("address",Schematic!$DG$217) -> '[Intersection_EXAMPLE (Tool v5.8.1).xlsm]Schematic'!$DG$217 | U35: 0
G36: 28 | H36: TURN_005_04 | I36: 5 | K36: American Pkwy & Eastpark Blvd | L36: NBR | M36: 110 | N36: 110 | O36: 0 | P36: 0 | T36: =CELL("address",Schematic!$BH$245) -> '[Intersection_EXAMPLE (Tool v5.8.1).xlsm]Schematic'!$BH$245 | U36: 0
G37: 29 | H37: TURN_005_05 | I37: 5 | K37: American Pkwy & Eastpark Blvd | L37: WBU | M37: 0 | N37: 0 | O37: 0 | T37: =CELL("address",Schematic!$DI$245) -> '[Intersection_EXAMPLE (Tool v5.8.1).xlsm]Schematic'!$DI$245 | U37: 0
G38: 30 | H38: TURN_005_06 | I38: 5 | K38: American Pkwy & Eastpark Blvd | L38: WBL | M38: 87 | N38: 87 | O38: 0 | P38: 0 | T38: =CELL("address",Schematic!$CP$260) -> '[Intersection_EXAMPLE (Tool v5.8.1).xlsm]Schematic'!$CP$260 | U38: 13
G39: 31 | H39: TURN_005_07 | I39: 5 | K39: American Pkwy & Eastpark Blvd | L39: WBT | M39: 33 | N39: 33 | O39: 0 | P39: 0 | T39: =CELL("address",Schematic!$AU$263) -> '[Intersection_EXAMPLE (Tool v5.8.1).xlsm]Schematic'!$AU$263 | U39: 44
G40: 32 | H40: TURN_005_08 | I40: 5 | K40: American Pkwy & Eastpark Blvd | L40: WBR | M40: 15 | N40: 15 | O40: 0 | P40: 0 | T40: =CELL("address",Schematic!$BR$263) -> '[Intersection_EXAMPLE (Tool v5.8.1).xlsm]Schematic'!$BR$263 | U40: -109
G41: 33 | H41: TURN_005_09 | I41: 5 | K41: =INDEX($D$9:$D$18, MATCH($I41,$C$9:$C$18,0)) -> American Pkwy & Eastpark Blvd | L41: SBU | M41: =INDIRECT(H41 & "_raw") -> 0 | N41: =INDIRECT(H41 & "_bal") -> 0 | O41: =$N41-$M41 -> 0 | P41: =IF($M41>0, SQRT($O41^2/$M41),"") ->  | T41: =CELL("address",Schematic!$DX$264) -> '[Intersection_EXAMPLE (Tool v5.8.1).xlsm]Schematic'!$DX$264 | U41: 0
G42: 34 | H42: TURN_005_10 | I42: 5 | K42: American Pkwy & Eastpark Blvd | L42: SBL | M42: 14 | N42: 14 | O42: 0 | P42: 0 | T42: =CELL("address",Schematic!$BD$279) -> '[Intersection_EXAMPLE (Tool v5.8.1).xlsm]Schematic'!$BD$279 | U42: 0
G43: 35 | H43: TURN_005_11 | I43: 5 | K43: American Pkwy & Eastpark Blvd | L43: SBT | M43: 343 | N43: 343 | O43: 0 | P43: 0 | T43: =CELL("address",Schematic!$DE$279) -> '[Intersection_EXAMPLE (Tool v5.8.1).xlsm]Schematic'!$DE$279 | U43: 15
G44: 36 | H44: TURN_005_12 | I44: 5 | K44: American Pkwy & Eastpark Blvd | L44: SBR | M44: 51 | N44: 51 | O44: 0 | P44: 0 | T44: =CELL("address",Schematic!$BH$280) -> '[Intersection_EXAMPLE (Tool v5.8.1).xlsm]Schematic'!$BH$280 | U44: 0
G45: 37 | H45: TURN_005_13 | I45: 5 | K45: American Pkwy & Eastpark Blvd | L45: EBU | M45: 0 | N45: 0 | O45: 0 | T45: =CELL("address",Schematic!$DI$280) -> '[Intersection_EXAMPLE (Tool v5.8.1).xlsm]Schematic'!$DI$280 | U45: 35
G46: 38 | H46: TURN_005_14 | I46: 5 | K46: American Pkwy & Eastpark Blvd | L46: EBL | M46: 24 | N46: 24 | O46: 0 | P46: 0 | T46: =CELL("address",Schematic!$BP$297) -> '[Intersection_EXAMPLE (Tool v5.8.1).xlsm]Schematic'!$BP$297 | U46: 41
G47: 39 | H47: TURN_005_15 | I47: 5 | K47: American Pkwy & Eastpark Blvd | L47: EBT | M47: 13 | N47: 13 | O47: 0 | P47: 0 | T47: =CELL("address",Schematic!$AU$299) -> '[Intersection_EXAMPLE (Tool v5.8.1).xlsm]Schematic'!$AU$299 | U47: -31
G48: 40 | H48: TURN_005_16 | I48: 5 | K48: American Pkwy & Eastpark Blvd | L48: EBR | M48: 120 | N48: 120 | O48: 0 | P48: 0 | T48: =CELL("address",Schematic!$CV$299) -> '[Intersection_EXAMPLE (Tool v5.8.1).xlsm]Schematic'!$CV$299 | U48: 1
G49: 41 | H49: TURN_006_01 | I49: 6 | J49: =INDEX($D$9:$D$18, MATCH($I49,$C$9:$C$18,0)) -> High Crossing Blvd & American Pkwy / Nelson Rd & US 151 | K49: High Crossing Blvd & American Pkwy / Nelson Rd & US 151 | L49: NBU | M49: 0 | N49: 0 | O49: 0 | T49: =CELL("address",Schematic!$BD$314) -> '[Intersection_EXAMPLE (Tool v5.8.1).xlsm]Schematic'!$BD$314 | U49: 0
G50: 42 | H50: TURN_006_02 | I50: 6 | K50: High Crossing Blvd & American Pkwy / Nelson Rd & US 151 | L50: NBL | M50: 74 | N50: 74 | O50: 0 | P50: 0 | T50: =CELL("address",Schematic!$DE$314) -> '[Intersection_EXAMPLE (Tool v5.8.1).xlsm]Schematic'!$DE$314 | U50: 0
G51: 43 | H51: TURN_006_03 | I51: 6 | K51: High Crossing Blvd & American Pkwy / Nelson Rd & US 151 | L51: NBT | M51: 252 | N51: 252 | O51: 0 | P51: 0
G52: 44 | H52: TURN_006_04 | I52: 6 | K52: High Crossing Blvd & American Pkwy / Nelson Rd & US 151 | L52: NBR | M52: 82 | N52: 82 | O52: 0 | P52: 0
G53: 45 | H53: TURN_006_05 | I53: 6 | K53: High Crossing Blvd & American Pkwy / Nelson Rd & US 151 | L53: WBU | M53: 0 | N53: 0 | O53: 0
G54: 46 | H54: TURN_006_06 | I54: 6 | K54: High Crossing Blvd & American Pkwy / Nelson Rd & US 151 | L54: WBL | M54: 24 | N54: 24 | O54: 0 | P54: 0
G55: 47 | H55: TURN_006_07 | I55: 6 | K55: High Crossing Blvd & American Pkwy / Nelson Rd & US 151 | L55: WBT | M55: 113 | N55: 113 | O55: 0 | P55: 0
G56: 48 | H56: TURN_006_08 | I56: 6 | K56: High Crossing Blvd & American Pkwy / Nelson Rd & US 151 | L56: WBR | M56: 5 | N56: 5 | O56: 0 | P56: 0
G57: 49 | H57: TURN_006_09 | I57: 6 | K57: High Crossing Blvd & American Pkwy / Nelson Rd & US 151 | L57: SBU | M57: 0 | N57: 0 | O57: 0
G58: 50 | H58: TURN_006_10 | I58: 6 | K58: High Crossing Blvd & American Pkwy / Nelson Rd & US 151 | L58: SBL | M58: 51 | N58: 51 | O58: 0 | P58: 0
G59: 51 | H59: TURN_006_11 | I59: 6 | K59: High Crossing Blvd & American Pkwy / Nelson Rd & US 151 | L59: SBT | M59: 137 | N59: 137 | O59: 0 | P59: 0
G60: 52 | H60: TURN_006_12 | I60: 6 | K60: High Crossing Blvd & American Pkwy / Nelson Rd & US 151 | L60: SBR | M60: 166 | N60: 166 | O60: 0 | P60: 0
G61: 53 | H61: TURN_006_13 | I61: 6 | K61: High Crossing Blvd & American Pkwy / Nelson Rd & US 151 | L61: EBU | M61: 0 | N61: 0 | O61: 0
G62: 54 | H62: TURN_006_14 | I62: 6 | K62: High Crossing Blvd & American Pkwy / Nelson Rd & US 151 | L62: EBL | M62: 214 | N62: 214 | O62: 0 | P62: 0
G63: 55 | H63: TURN_006_15 | I63: 6 | K63: High Crossing Blvd & American Pkwy / Nelson Rd & US 151 | L63: EBT | M63: 100 | N63: 100 | O63: 0 | P63: 0
G64: 56 | H64: TURN_006_16 | I64: 6 | K64: High Crossing Blvd & American Pkwy / Nelson Rd & US 151 | L64: EBR | M64: 41 | N64: 41 | O64: 0 | P64: 0
G65: 57 | H65: TURN_007_01 | I65: 7 | J65: =INDEX($D$9:$D$18, MATCH($I65,$C$9:$C$18,0)) -> US 51 & WB WIS 30 Ramps | K65: US 51 & WB WIS 30 Ramps | L65: NBU | M65: 0 | N65: 0 | O65: 0
G66: 58 | H66: TURN_007_02 | I66: 7 | K66: US 51 & WB WIS 30 Ramps | L66: NBL | M66: 472 | N66: 472 | O66: 0 | P66: 0
G67: 59 | H67: TURN_007_03 | I67: 7 | K67: US 51 & WB WIS 30 Ramps | L67: NBT | M67: 710 | N67: 710 | O67: 0 | P67: 0
G68: 60 | H68: TURN_007_06 | I68: 7 | K68: US 51 & WB WIS 30 Ramps | L68: WBL | M68: 868 | N68: 868 | O68: 0 | P68: 0
G69: 61 | H69: TURN_007_07 | I69: 7 | K69: US 51 & WB WIS 30 Ramps | L69: WBT | M69: 0 | N69: 0 | O69: 0
G70: 62 | H70: TURN_007_08 | I70: 7 | K70: US 51 & WB WIS 30 Ramps | L70: WBR | M70: 343 | N70: 343 | O70: 0 | P70: 0
G71: 63 | H71: TURN_007_09 | I71: 7 | K71: US 51 & WB WIS 30 Ramps | L71: SBU | M71: 0 | N71: 0 | O71: 0
G72: 64 | H72: TURN_007_11 | I72: 7 | K72: US 51 & WB WIS 30 Ramps | L72: SBT | M72: 813 | N72: 813 | O72: 0 | P72: 0
G73: 65 | H73: TURN_007_12 | I73: 7 | K73: =INDEX($D$9:$D$18, MATCH($I73,$C$9:$C$18,0)) -> US 51 & WB WIS 30 Ramps | L73: SBR | M73: =INDIRECT(H73 & "_raw") -> 34 | N73: =INDIRECT(H73 & "_bal") -> 34 | O73: =$N73-$M73 -> 0 | P73: =IF($M73>0, SQRT($O73^2/$M73),"") -> 0
G74: 66 | H74: TURN_008_01 | I74: 8 | J74: =INDEX($D$9:$D$18, MATCH($I74,$C$9:$C$18,0)) -> US 51 & EB WIS 30 Ramps | K74: US 51 & EB WIS 30 Ramps | L74: NBU | M74: 0 | N74: 0 | O74: 0
G75: 67 | H75: TURN_008_03 | I75: 8 | K75: US 51 & EB WIS 30 Ramps | L75: NBT | M75: 1145 | N75: 1145 | O75: 0 | P75: 0
G76: 68 | H76: TURN_008_04 | I76: 8 | K76: US 51 & EB WIS 30 Ramps | L76: NBR | M76: 352 | N76: 352 | O76: 0 | P76: 0
G77: 69 | H77: TURN_008_09 | I77: 8 | K77: US 51 & EB WIS 30 Ramps | L77: SBU | M77: 0 | N77: 0 | O77: 0
G78: 70 | H78: TURN_008_10 | I78: 8 | K78: US 51 & EB WIS 30 Ramps | L78: SBL | M78: 107 | N78: 107 | O78: 0 | P78: 0
G79: 71 | H79: TURN_008_11 | I79: 8 | K79: US 51 & EB WIS 30 Ramps | L79: SBT | M79: 1574 | N79: 1574 | O79: 0 | P79: 0
G80: 72 | H80: TURN_008_14 | I80: 8 | K80: US 51 & EB WIS 30 Ramps | L80: EBL | M80: 37 | N80: 37 | O80: 0 | P80: 0
G81: 73 | H81: TURN_008_15 | I81: 8 | K81: US 51 & EB WIS 30 Ramps | L81: EBT | M81: 0 | N81: 0 | O81: 0
G82: 74 | H82: TURN_008_16 | I82: 8 | K82: US 51 & EB WIS 30 Ramps | L82: EBR | M82: 582 | N82: 582 | O82: 0 | P82: 0
G83: 75 | H83: TURN_009_01 | I83: 9 | J83: =INDEX($D$9:$D$18, MATCH($I83,$C$9:$C$18,0)) -> Thompson Dr & WB WIS 30 On-Ramp | K83: Thompson Dr & WB WIS 30 On-Ramp | L83: NBU | M83: 0 | N83: 0 | O83: 0
G84: 76 | H84: TURN_009_02 | I84: 9 | K84: Thompson Dr & WB WIS 30 On-Ramp | L84: NBL | M84: 195 | N84: 195 | O84: 0 | P84: 0
G85: 77 | H85: TURN_009_03 | I85: 9 | K85: Thompson Dr & WB WIS 30 On-Ramp | L85: NBT | M85: 213 | N85: 213 | O85: 0 | P85: 0
G86: 78 | H86: TURN_009_04 | I86: 9 | K86: Thompson Dr & WB WIS 30 On-Ramp | L86: NBR | M86: 153 | N86: 153 | O86: 0 | P86: 0
G87: 79 | H87: TURN_009_05 | I87: 9 | K87: Thompson Dr & WB WIS 30 On-Ramp | L87: WBU | M87: 0 | N87: 0 | O87: 0
G88: 80 | H88: TURN_009_06 | I88: 9 | K88: Thompson Dr & WB WIS 30 On-Ramp | L88: WBL | M88: 47 | N88: 47 | O88: 0 | P88: 0
G89: 81 | H89: TURN_009_07 | I89: 9 | K89: Thompson Dr & WB WIS 30 On-Ramp | L89: WBT | M89: 454 | N89: 454 | O89: 0 | P89: 0
G90: 82 | H90: TURN_009_08 | I90: 9 | K90: Thompson Dr & WB WIS 30 On-Ramp | L90: WBR | M90: 3 | N90: 3 | O90: 0 | P90: 0
G91: 83 | H91: TURN_009_09 | I91: 9 | K91: Thompson Dr & WB WIS 30 On-Ramp | L91: SBU | M91: 0 | N91: 0 | O91: 0
G92: 84 | H92: TURN_009_10 | I92: 9 | K92: Thompson Dr & WB WIS 30 On-Ramp | L92: SBL | M92: 5 | N92: 5 | O92: 0 | P92: 0
G93: 85 | H93: TURN_009_11 | I93: 9 | K93: Thompson Dr & WB WIS 30 On-Ramp | L93: SBT | M93: 103 | N93: 103 | O93: 0 | P93: 0
G94: 86 | H94: TURN_009_12 | I94: 9 | K94: Thompson Dr & WB WIS 30 On-Ramp | L94: SBR | M94: 448 | N94: 448 | O94: 0 | P94: 0
G95: 87 | H95: TURN_009_13 | I95: 9 | K95: Thompson Dr & WB WIS 30 On-Ramp | L95: EBU | M95: 0 | N95: 0 | O95: 0
G96: 88 | H96: TURN_009_14 | I96: 9 | K96: Thompson Dr & WB WIS 30 On-Ramp | L96: EBL | M96: 0 | N96: 0 | O96: 0
G97: 89 | H97: TURN_009_15 | I97: 9 | K97: Thompson Dr & WB WIS 30 On-Ramp | L97: EBT | M97: 0 | N97: 0 | O97: 0
G98: 90 | H98: TURN_009_16 | I98: 9 | K98: Thompson Dr & WB WIS 30 On-Ramp | L98: EBR | M98: 0 | N98: 0 | O98: 0
G99: 91 | H99: TURN_010_01 | I99: 10 | J99: =INDEX($D$9:$D$18, MATCH($I99,$C$9:$C$18,0)) -> Thompson Dr & EB WIS 30Off-Ramp | K99: Thompson Dr & EB WIS 30Off-Ramp | L99: NBU | M99: 0 | N99: 0 | O99: 0
G100: 92 | H100: TURN_010_03 | I100: 10 | K100: Thompson Dr & EB WIS 30Off-Ramp | L100: NBT | M100: 300 | N100: 300 | O100: 0 | P100: 0
G101: 93 | H101: TURN_010_09 | I101: 10 | K101: Thompson Dr & EB WIS 30Off-Ramp | L101: SBU | M101: 0 | N101: 0 | O101: 0
G102: 94 | H102: TURN_010_11 | I102: 10 | K102: Thompson Dr & EB WIS 30Off-Ramp | L102: SBT | M102: 165 | N102: 165 | O102: 0 | P102: 0
G103: 95 | H103: TURN_010_14 | I103: 10 | K103: Thompson Dr & EB WIS 30Off-Ramp | L103: EBL | M103: 226 | N103: 226 | O103: 0 | P103: 0
G104: 96 | H104: TURN_010_16 | I104: 10 | K104: Thompson Dr & EB WIS 30Off-Ramp | L104: EBR | M104: 45 | N104: 45 | O104: 0 | P104: 0

Sheet Raw-Initial Volume List Entry
D2: Project | E2: =Schematic!$L$3 -> Sample Freeway & Intersection Balancing
D3: Scenario | E3: =Schematic!$L$4 -> Year 2012 AM Peak
D6: Transfer Raw/Initial Volumes to/from the Schematic Worksheet
M8: Turn Numbers in Schematic Orientation
M9: ê | R9: < | S9: 8
M10: Top Leg | R10: ! | S10: 7 | T10: ç
M11: 12 | N11: 11 | O11: 10 | P11: 9 | R11: > | S11: 6 | T11: Right Leg
M12: 8 | N12: $ | O12: 9 | P12: M | R12: N | S12: 5
O14: 13 | P14: O | R14: L | S14: : | T14: # | U14: ;
M15: è | O15: 14 | P15: = | R15: 1 | S15: 2 | T15: 3 | U15: 4
M16: Left Leg | O16: 15 | P16: " | R16: é
O17: 16 | P17: ? | R17: Bottom Leg
E21: Turn Number | F21: 12 | G21: 11 | H21: 10 | I21: 9 | J21: 8 | K21: 7 | L21: 6 | M21: 5 | N21: 4 | O21: 3 | P21: 2 | Q21: 1 | R21: 13 | S21: 14 | T21: 15 | U21: 16
F22: ê | J22: ç | N22: é | R22: è
D23: Intersection | F23: Top Leg | J23: Right Leg | N23: Bottom Leg | R23: Left Leg
D24: Number | E24: Name | F24: Right | G24: Thru | H24: Left | I24: U-Tn | J24: Right | K24: Thru | L24: Left | M24: U-Tn | N24: Right | O24: Thru | P24: Left | Q24: U-Tn | R24: Right | S24: Thru | T24: Left | U24: U-Tn
D25: =Schematic!$AW$44 -> 1 | E25: =Schematic!$AJ$30 -> US 51 & NB I-39/90/94 Ramps | F25: 12 | G25: 1193 | J25: 217 | L25: 91 | N25: 143 | O25: 312
D26: =Schematic!$AW$79 -> 2 | E26: =Schematic!$AJ$65 -> US 51 & SB I-39/90/94 Ramps | F26: 269 | G26: 1064 | N26: 76 | O26: 423 | R26: 786 | T26: 3
D27: =Schematic!$DI$130 -> 5 | E27: =Schematic!$CV$116 -> American Pkwy & Eastpark Blvd | F27: 51 | G27: 343 | H27: 14 | I27: 0 | J27: 15 | K27: 33 | L27: 87 | M27: 0 | N27: 110 | O27: 1051 | P27: 570 | Q27: 0 | R27: 120 | S27: 13 | T27: 24 | U27: 0
D28: =Schematic!$AQ$165 -> 3 | E28: =Schematic!$AK$140 -> High Crossing Blvd & SB I-39/90/94 On-Ramp | K28: 279 | L28: 175 | M28: 0 | R28: 85 | S28: 145 | U28: 0
D29: =Schematic!$BL$165 -> 4 | E29: =Schematic!$BM$140 -> High Crossing Blvd & NB I-39/90/94 Off-Ramp | K29: 323 | M29: 0 | N29: 394 | P29: 141 | S29: 145 | U29: 0
D30: =Schematic!$DI$200 -> 6 | E30: =Schematic!$CV$186 -> High Crossing Blvd & American Pkwy / Nelson Rd & US 151 | F30: 166 | G30: 137 | H30: 51 | I30: 0 | J30: 5 | K30: 113 | L30: 24 | M30: 0 | N30: 82 | O30: 252 | P30: 74 | Q30: 0 | R30: 41 | S30: 100 | T30: 214 | U30: 0
D31: =Schematic!$BF$262 -> 7 | E31: =Schematic!$AS$248 -> US 51 & WB WIS 30 Ramps | F31: 34 | G31: 813 | I31: 0 | J31: 343 | K31: 0 | L31: 868 | O31: 710 | P31: 472 | Q31: 0
D32: =Schematic!$DG$262 -> 9 | E32: =Schematic!$CT$248 -> Thompson Dr & WB WIS 30 On-Ramp | F32: 448 | G32: 103 | H32: 5 | I32: 0 | J32: 3 | K32: 454 | L32: 47 | M32: 0 | N32: 153 | O32: 213 | P32: 195 | Q32: 0 | R32: 0 | S32: 0 | T32: 0 | U32: 0
D33: =Schematic!$BF$297 -> 8 | E33: =Schematic!$AS$308 -> US 51 & EB WIS 30 Ramps | G33: 1574 | H33: 107 | I33: 0 | N33: 352 | O33: 1145 | Q33: 0 | R33: 582 | S33: 0 | T33: 37
D34: =Schematic!$DG$297 -> 10 | E34: =Schematic!$CT$308 -> Thompson Dr & EB WIS 30Off-Ramp | G34: 165 | I34: 0 | O34: 300 | Q34: 0 | R34: 45 | T34: 226
